Department family,Entity,Date,Expense type,Expense area,Supplier,Transaction number,Amount,VAT registration number,
Department for Business Energy and Industrial Strategy,Intellectual Property Office,18/07/2017,Staff Costs,IT Directorate,Hays Specialist Recruitment,1007713504,-23562.00,Not Applicable,
Department for Business Energy and Industrial Strategy,Intellectual Property Office,26/07/2017,Telecoms,IT Directorate,Spectrum Internet Ltd,CR1034,-48.65,Not Applicable,
Department for Business Energy and Industrial Strategy,Intellectual Property Office,31/07/2017,Telecoms,IT Directorate,VODAFONE LIMITED,15421070,1.15,Not Applicable,
Department for Business Energy and Industrial Strategy,Intellectual Property Office,28/07/2017,Telecoms,IT Directorate,Vodafone Corporate Ltd,84802039,9.00,Not Applicable,
Department for Business Energy and Industrial Strategy,Intellectual Property Office,26/07/2017,Telecoms,IT Directorate,Vodafone Corporate Ltd,84802239,9.00,Not Applicable,
Department for Business Energy and Industrial Strategy,Intellectual Property Office,26/07/2017,Telecoms,IT Directorate,Vodafone Corporate Ltd,84802251,9.07,Not Applicable,
Department for Business Energy and Industrial Strategy,Intellectual Property Office,11/07/2017,Travel & Subsistence,IT Directorate,Personal expenses,UK000001844,9.48,Not Applicable,
Department for Business Energy and Industrial Strategy,Intellectual Property Office,25/07/2017,Travel & Subsistence,IT Directorate,Personal expenses,UK000001930,10.00,Not Applicable,
Department for Business Energy and Industrial Strategy,Intellectual Property Office,18/07/2017,Travel & Subsistence,IT Directorate,Personal expenses,UK000001881,14.33,Not Applicable,
Department for Business Energy and Industrial Strategy,Intellectual Property Office,31/07/2017,Travel & Subsistence,IT Directorate,Personal expenses,UK000001979,14.98,Not Applicable,
Department for Business Energy and Industrial Strategy,Intellectual Property Office,17/07/2017,Telecoms,IT Directorate,TELEFONICA UK LIMITED,97496888,21.00,Not Applicable,
Department for Business Energy and Industrial Strategy,Intellectual Property Office,17/07/2017,Telecoms,IT Directorate,TELEFONICA UK LIMITED,98304404,21.00,Not Applicable,
Department for Business Energy and Industrial Strategy,Intellectual Property Office,05/07/2017,Travel & Subsistence,IT Directorate,Veezu Ltd T/A Dragon Taxis (Newport),3206,20.46,Not Applicable,
Department for Business Energy and Industrial Strategy,Intellectual Property Office,10/07/2017,Travel & Subsistence,IT Directorate,Personal expenses,UK000001778,23.00,Not Applicable,
Department for Business Energy and Industrial Strategy,Intellectual Property Office,20/07/2017,Travel & Subsistence,IT Directorate,Personal expenses,UK000001918,23.85,Not Applicable,
Department for Business Energy and Industrial Strategy,Intellectual Property Office,25/07/2017,Telecoms,IT Directorate,VIRGIN MEDIA,740075701-21JUL,36.13,Not Applicable,
Department for Business Energy and Industrial Strategy,Intellectual Property Office,27/07/2017,Telecoms,IT Directorate,VIRGIN MEDIA,441112301-25JUL,46.80,Not Applicable,
Department for Business Energy and Industrial Strategy,Intellectual Property Office,03/07/2017,Telecoms,IT Directorate,VIRGIN MEDIA,288670201-29JUN,46.81,Not Applicable,
Department for Business Energy and Industrial Strategy,Intellectual Property Office,27/07/2017,Telecoms,IT Directorate,VIRGIN MEDIA,440037101-25JUL,46.87,Not Applicable,
Department for Business Energy and Industrial Strategy,Intellectual Property Office,27/07/2017,Telecoms,IT Directorate,VIRGIN MEDIA,440030801-25JUL,47.12,Not Applicable,
Department for Business Energy and Industrial Strategy,Intellectual Property Office,21/07/2017,Telecoms,IT Directorate,VIRGIN MEDIA,435496901-19JUL,47.32,Not Applicable,
Department for Business Energy and Industrial Strategy,Intellectual Property Office,27/07/2017,Travel & Subsistence,IT Directorate,Personal expenses,UK0000001920,41.00,Not Applicable,
Department for Business Energy and Industrial Strategy,Intellectual Property Office,27/07/2017,Telecoms,IT Directorate,VIRGIN MEDIA,442013201-25JUL,49.78,Not Applicable,
Department for Business Energy and Industrial Strategy,Intellectual Property Office,27/07/2017,Telecoms,IT Directorate,VIRGIN MEDIA,416860501-25JUL,53.15,Not Applicable,
Department for Business Energy and Industrial Strategy,Intellectual Property Office,28/07/2017,Travel & Subsistence,IT Directorate,Personal expenses,UK000001972,45.00,Not Applicable,
Department for Business Energy and Industrial Strategy,Intellectual Property Office,18/07/2017,Telecoms,IT Directorate,VIRGIN MEDIA,442137701-13JUL,58.80,Not Applicable,
Department for Business Energy and Industrial Strategy,Intellectual Property Office,21/07/2017,Telecoms,IT Directorate,VIRGIN MEDIA,442140501-19JUL,59.05,Not Applicable,
Department for Business Energy and Industrial Strategy,Intellectual Property Office,18/07/2017,Telecoms,IT Directorate,VIRGIN MEDIA,688514801-13JUL,60.00,Not Applicable,
Department for Business Energy and Industrial Strategy,Intellectual Property Office,05/07/2017,Telecoms,IT Directorate,VIRGIN MEDIA,728127801-29JUN,60.00,Not Applicable,
Department for Business Energy and Industrial Strategy,Intellectual Property Office,19/07/2017,Telecoms,IT Directorate,VIRGIN MEDIA,441885201-17JUL,60.07,Not Applicable,
Department for Business Energy and Industrial Strategy,Intellectual Property Office,26/07/2017,Telecoms,IT Directorate,Spectrum Internet Ltd,24014,63.00,Not Applicable,
Department for Business Energy and Industrial Strategy,Intellectual Property Office,05/07/2017,Travel & Subsistence,IT Directorate,Personal expenses,UK000001791,53.73,Not Applicable,
Department for Business Energy and Industrial Strategy,Intellectual Property Office,18/07/2017,Telecoms,IT Directorate,VIRGIN MEDIA,442486301-13JUL,66.00,Not Applicable,
Department for Business Energy and Industrial Strategy,Intellectual Property Office,03/07/2017,Telecoms,IT Directorate,VIRGIN MEDIA,442638901-26JUN,66.00,Not Applicable,
Department for Business Energy and Industrial Strategy,Intellectual Property Office,19/07/2017,Telecoms,IT Directorate,VIRGIN MEDIA,442644001-20JUN,66.00,Not Applicable,
Department for Business Energy and Industrial Strategy,Intellectual Property Office,27/07/2017,Telecoms,IT Directorate,VIRGIN MEDIA,442664101-25JUL,66.00,Not Applicable,
Department for Business Energy and Industrial Strategy,Intellectual Property Office,03/07/2017,Telecoms,IT Directorate,VIRGIN MEDIA,442664101-26JUN,66.00,Not Applicable,
Department for Business Energy and Industrial Strategy,Intellectual Property Office,18/07/2017,Telecoms,IT Directorate,VIRGIN MEDIA,442217501-13JUL,66.01,Not Applicable,
Department for Business Energy and Industrial Strategy,Intellectual Property Office,18/07/2017,Telecoms,IT Directorate,VIRGIN MEDIA,442537901-13JUL,66.32,Not Applicable,
Department for Business Energy and Industrial Strategy,Intellectual Property Office,19/07/2017,Telecoms,IT Directorate,VIRGIN MEDIA,442593001-13JUL,66.43,Not Applicable,
Department for Business Energy and Industrial Strategy,Intellectual Property Office,31/07/2017,Telecoms,IT Directorate,VIRGIN MEDIA,442217601-27JUL,66.56,Not Applicable,
Department for Business Energy and Industrial Strategy,Intellectual Property Office,27/07/2017,Telecoms,IT Directorate,VIRGIN MEDIA,442594601-19JUL,66.56,Not Applicable,
Department for Business Energy and Industrial Strategy,Intellectual Property Office,07/07/2017,Telecoms,IT Directorate,VIRGIN MEDIA,442217001-05JUL,66.60,Not Applicable,
Department for Business Energy and Industrial Strategy,Intellectual Property Office,21/07/2017,Telecoms,IT Directorate,VIRGIN MEDIA,442469201-19JUL,66.61,Not Applicable,
Department for Business Energy and Industrial Strategy,Intellectual Property Office,31/07/2017,Telecoms,IT Directorate,VIRGIN MEDIA,441938301-27JUL,66.66,Not Applicable,
Department for Business Energy and Industrial Strategy,Intellectual Property Office,13/07/2017,Telecoms,IT Directorate,VIRGIN MEDIA,442589901-11JUL,66.97,Not Applicable,
Department for Business Energy and Industrial Strategy,Intellectual Property Office,19/07/2017,Telecoms,IT Directorate,VIRGIN MEDIA,442560501-11JUL,67.46,Not Applicable,
Department for Business Energy and Industrial Strategy,Intellectual Property Office,18/07/2017,Telecoms,IT Directorate,VIRGIN MEDIA,442295501-13JUL,68.10,Not Applicable,
Department for Business Energy and Industrial Strategy,Intellectual Property Office,24/07/2017,Telecoms,IT Directorate,VIRGIN MEDIA,442636301-17JUL,72.30,Not Applicable,
Department for Business Energy and Industrial Strategy,Intellectual Property Office,05/07/2017,Telecoms,IT Directorate,VIRGIN MEDIA,442573701-28JUN,72.46,Not Applicable,
Department for Business Energy and Industrial Strategy,Intellectual Property Office,21/07/2017,Telecoms,IT Directorate,VIRGIN MEDIA,874902401-19JUL,72.58,Not Applicable,
Department for Business Energy and Industrial Strategy,Intellectual Property Office,27/07/2017,Telecoms,IT Directorate,VIRGIN MEDIA,442485101-25JUL,72.60,Not Applicable,
Department for Business Energy and Industrial Strategy,Intellectual Property Office,18/07/2017,Telecoms,IT Directorate,VIRGIN MEDIA,442561301-11JUL,73.08,Not Applicable,
Department for Business Energy and Industrial Strategy,Intellectual Property Office,12/07/2017,Telecoms,IT Directorate,VIRGIN MEDIA,745653601-10JUL,73.24,Not Applicable,
Department for Business Energy and Industrial Strategy,Intellectual Property Office,13/07/2017,Telecoms,IT Directorate,VIRGIN MEDIA,442485301-11JUL,73.69,Not Applicable,
Department for Business Energy and Industrial Strategy,Intellectual Property Office,31/07/2017,Telecoms,IT Directorate,VIRGIN MEDIA,442366301-27JUL,73.72,Not Applicable,
Department for Business Energy and Industrial Strategy,Intellectual Property Office,19/07/2017,Telecoms,IT Directorate,VIRGIN MEDIA,442481401-11JUL,74.36,Not Applicable,
Department for Business Energy and Industrial Strategy,Intellectual Property Office,25/07/2017,Telecoms,IT Directorate,VIRGIN MEDIA,442561201-05JUL,74.72,Not Applicable,
Department for Business Energy and Industrial Strategy,Intellectual Property Office,20/07/2017,Telecoms,IT Directorate,VIRGIN MEDIA,291879201-13JUL,76.69,Not Applicable,
Department for Business Energy and Industrial Strategy,Intellectual Property Office,27/07/2017,Telecoms,IT Directorate,VIRGIN MEDIA,442390001-25JUL,79.20,Not Applicable,
Department for Business Energy and Industrial Strategy,Intellectual Property Office,19/07/2017,Telecoms,IT Directorate,VIRGIN MEDIA,442567801-13JUL,87.46,Not Applicable,
Department for Business Energy and Industrial Strategy,Intellectual Property Office,10/07/2017,Telecoms,IT Directorate,Questmark Ltd,20364,108.00,Not Applicable,
Department for Business Energy and Industrial Strategy,Intellectual Property Office,18/07/2017,Telecoms,IT Directorate,VIRGIN MEDIA,414650701-13JUL,109.75,Not Applicable,
Department for Business Energy and Industrial Strategy,Intellectual Property Office,10/07/2017,Telecoms,IT Directorate,Questmark Ltd,20363,135.00,Not Applicable,
Department for Business Energy and Industrial Strategy,Intellectual Property Office,12/07/2017,Telecoms,IT Directorate,THREE,AGL99234673,175.87,Not Applicable,
Department for Business Energy and Industrial Strategy,Intellectual Property Office,10/07/2017,Information Technology,IT Directorate,SOFTWARE BOX LTD,INV90823,215.69,Not Applicable,
Department for Business Energy and Industrial Strategy,Intellectual Property Office,13/07/2017,Telecoms,IT Directorate,VIRGIN MEDIA,442595001-11JUL,313.66,Not Applicable,
Department for Business Energy and Industrial Strategy,Intellectual Property Office,26/07/2017,Information Technology,IT Directorate,Specialist Computer Centres Plc,OP/M328504,385.72,Not Applicable,
Department for Business Energy and Industrial Strategy,Intellectual Property Office,26/07/2017,Information Technology,IT Directorate,Trustmarque Solutions Ltd,2261574,445.44,Not Applicable,
Department for Business Energy and Industrial Strategy,Intellectual Property Office,13/07/2017,Telecoms,IT Directorate,VIRGIN MEDIA,414673601-11JUL,456.37,Not Applicable,
Department for Business Energy and Industrial Strategy,Intellectual Property Office,13/07/2017,Telecoms,IT Directorate,VIRGIN MEDIA,409092201-11JUL,501.16,Not Applicable,
Department for Business Energy and Industrial Strategy,Intellectual Property Office,05/07/2017,Telecoms,IT Directorate,Questmark Ltd,20343,504.00,Not Applicable,
Department for Business Energy and Industrial Strategy,Intellectual Property Office,06/07/2017,Telecoms,IT Directorate,VIRGIN MEDIA,917218-01JUL,576.56,Not Applicable,
Department for Business Energy and Industrial Strategy,Intellectual Property Office,07/07/2017,Telecoms,IT Directorate,THREE,AFL97677017,773.59,Not Applicable,
Department for Business Energy and Industrial Strategy,Intellectual Property Office,19/07/2017,Information Technology,IT Directorate,MCSA GROUP LTD,S-INV-105879,803.68,Not Applicable,
Department for Business Energy and Industrial Strategy,Intellectual Property Office,26/07/2017,Information Technology,IT Directorate,Trustmarque Solutions Ltd,2261497,1099.20,Not Applicable,
Department for Business Energy and Industrial Strategy,Intellectual Property Office,06/07/2017,Information Technology,IT Directorate,Specialist Computer Centres Plc,OP-M321489,1244.10,Not Applicable,
Department for Business Energy and Industrial Strategy,Intellectual Property Office,19/07/2017,Information Technology,IT Directorate,HFX Ltd,26476,1530.00,Not Applicable,
Department for Business Energy and Industrial Strategy,Intellectual Property Office,07/07/2017,Information Technology,IT Directorate,Specialist Computer Centres Plc,OP-M318859,1689.91,Not Applicable,
Department for Business Energy and Industrial Strategy,Intellectual Property Office,07/07/2017,Information Technology,IT Directorate,Capita Business Services  Ltd,LO10205526,2022.42,Not Applicable,
Department for Business Energy and Industrial Strategy,Intellectual Property Office,07/07/2017,Information Technology,IT Directorate,Capita Business Services  Ltd,LO10205526,2022.42,Not Applicable,
Department for Business Energy and Industrial Strategy,Intellectual Property Office,21/07/2017,Information Technology,IT Directorate,Capita Business Services  Ltd,LO10208597,2022.42,Not Applicable,
Department for Business Energy and Industrial Strategy,Intellectual Property Office,21/07/2017,Information Technology,IT Directorate,Capita Business Services  Ltd,LO10208597,2022.42,Not Applicable,
Department for Business Energy and Industrial Strategy,Intellectual Property Office,04/07/2017,Information Technology,IT Directorate,SOFTWARE BOX LTD,INV90729,2097.47,Not Applicable,
Department for Business Energy and Industrial Strategy,Intellectual Property Office,19/07/2017,Information Technology,IT Directorate,MCSA GROUP LTD,S-INV-105862,2764.01,Not Applicable,
Department for Business Energy and Industrial Strategy,Intellectual Property Office,13/07/2017,Telecoms,IT Directorate,British  Telecom,GP00002104M047XA,3056.23,Not Applicable,
Department for Business Energy and Industrial Strategy,Intellectual Property Office,05/07/2017,Telecoms,IT Directorate,Personal expenses,UK10-072017-3337,3322.08,Not Applicable,
Department for Business Energy and Industrial Strategy,Intellectual Property Office,26/07/2017,Telecoms,IT Directorate,Vodafone Corporate Ltd,84794900,3768.10,Not Applicable,
Department for Business Energy and Industrial Strategy,Intellectual Property Office,03/07/2017,Information Technology,IT Directorate,Verisign,520005191,4623.48,Not Applicable,
Department for Business Energy and Industrial Strategy,Intellectual Property Office,07/07/2017,Information Technology,IT Directorate,Computacenter (UK) ltd,3881175560,6350.40,Not Applicable,
Department for Business Energy and Industrial Strategy,Intellectual Property Office,19/07/2017,Telecoms,IT Directorate,British  Telecom,VP 02239170 M187,8232.20,Not Applicable,
Department for Business Energy and Industrial Strategy,Intellectual Property Office,11/07/2017,Information Technology,IT Directorate,Comparex Ltd,170002994VRUKA,8270.09,Not Applicable,
Department for Business Energy and Industrial Strategy,Intellectual Property Office,24/07/2017,Telecoms,IT Directorate,EE Ltd,1261543404,7888.08,Not Applicable,
Department for Business Energy and Industrial Strategy,Intellectual Property Office,05/07/2017,Telecoms,IT Directorate,British  Telecom,VP 02239170 M186,8325.60,Not Applicable,
Department for Business Energy and Industrial Strategy,Intellectual Property Office,19/07/2017,Information Technology,IT Directorate,MCSA GROUP LTD,S-INV-105859,12886.32,Not Applicable,
Department for Business Energy and Industrial Strategy,Intellectual Property Office,13/07/2017,Information Technology,IT Directorate,HORNBILL SERVICE MANAGEMENT LIMITED,INV13321,14815.80,Not Applicable,
Department for Business Energy and Industrial Strategy,Intellectual Property Office,18/07/2017,Staff Costs,IT Directorate,Hays Specialist Recruitment,1007664613,23562.00,Not Applicable,
Department for Business Energy and Industrial Strategy,Intellectual Property Office,27/07/2017,Information Technology,IT Directorate,Open Connections Solutions Ltd,32031,57134.63,Not Applicable,
Department for Business Energy and Industrial Strategy,Intellectual Property Office,21/07/2017,Telecoms,IT Directorate,VIRGIN MEDIA,908251-099-08JUL,96702.00,Not Applicable,
Department for Business Energy and Industrial Strategy,Intellectual Property Office,27/07/2017,Information Technology,IT Directorate,Experian Ltd,HEX67000614494,138019.13,Not Applicable,
Department for Business Energy and Industrial Strategy,Intellectual Property Office,19/07/2017,Information Technology,IT Directorate,MCSA GROUP LTD,S-INV-105861,218324.20,Not Applicable,
Department for Business Energy and Industrial Strategy,Intellectual Property Office,25/07/2017,Information Technology,IT Directorate,Agile Solutions GB Ltd,CN-2890,-6780.00,Not Applicable,
Department for Business Energy and Industrial Strategy,Intellectual Property Office,25/07/2017,Information Technology,IT Directorate,Agile Solutions GB Ltd,CN-2905,-3030.00,Not Applicable,
Department for Business Energy and Industrial Strategy,Intellectual Property Office,05/07/2017,Travel & Subsistence,IT Directorate,Veezu Ltd T/A Dragon Taxis (Newport),3206,7.80,Not Applicable,
Department for Business Energy and Industrial Strategy,Intellectual Property Office,18/07/2017,Travel & Subsistence,IT Directorate,Personal expenses,UK000001833,27.80,Not Applicable,
Department for Business Energy and Industrial Strategy,Intellectual Property Office,03/07/2017,Travel & Subsistence,IT Directorate,Zenith,12566,74.54,Not Applicable,
Department for Business Energy and Industrial Strategy,Intellectual Property Office,06/07/2017,Staff Costs,IT Directorate,Assist Knowledge Development Ltd,646,804.00,Not Applicable,
Department for Business Energy and Industrial Strategy,Intellectual Property Office,11/07/2017,Information Technology,IT Directorate,Agile Solutions GB Ltd,INV-2906,1140.00,Not Applicable,
Department for Business Energy and Industrial Strategy,Intellectual Property Office,14/07/2017,Information Technology,IT Directorate,Capita Business Services  Ltd,LO10207024,2997.90,Not Applicable,
Department for Business Energy and Industrial Strategy,Intellectual Property Office,21/07/2017,Information Technology,IT Directorate,Capita Business Services  Ltd,LO10208597,2997.90,Not Applicable,
Department for Business Energy and Industrial Strategy,Intellectual Property Office,28/07/2017,Information Technology,IT Directorate,Capita Business Services  Ltd,LO10209846,2997.90,Not Applicable,
Department for Business Energy and Industrial Strategy,Intellectual Property Office,28/07/2017,Information Technology,IT Directorate,Capita Business Services  Ltd,LO10209846,3037.06,Not Applicable,
Department for Business Energy and Industrial Strategy,Intellectual Property Office,28/07/2017,Information Technology,IT Directorate,Capita Business Services  Ltd,LO10209846,3037.06,Not Applicable,
Department for Business Energy and Industrial Strategy,Intellectual Property Office,21/07/2017,Information Technology,IT Directorate,Capita Business Services  Ltd,LO10208597,3199.03,Not Applicable,
Department for Business Energy and Industrial Strategy,Intellectual Property Office,14/07/2017,Information Technology,IT Directorate,Capita Business Services  Ltd,LO10207024,4204.73,Not Applicable,
Department for Business Energy and Industrial Strategy,Intellectual Property Office,11/07/2017,Information Technology,IT Directorate,Agile Solutions GB Ltd,INV-2823,7680.00,Not Applicable,
Department for Business Energy and Industrial Strategy,Intellectual Property Office,26/07/2017,Information Technology,IT Directorate,Agile Solutions GB Ltd,INV-3012,11565.00,Not Applicable,
Department for Business Energy and Industrial Strategy,Intellectual Property Office,11/07/2017,Information Technology,IT Directorate,Agile Solutions GB Ltd,INV-2972,16215.00,Not Applicable,
Department for Business Energy and Industrial Strategy,Intellectual Property Office,11/07/2017,Information Technology,IT Directorate,Agile Solutions GB Ltd,INV-2909,16470.00,Not Applicable,
Department for Business Energy and Industrial Strategy,Intellectual Property Office,25/07/2017,Information Technology,IT Directorate,Agile Solutions GB Ltd,INV-2865,19710.00,Not Applicable,
Department for Business Energy and Industrial Strategy,Intellectual Property Office,10/07/2017,Travel & Subsistence,IT Directorate,Personal expenses,UK000001813,4.20,Not Applicable,
Department for Business Energy and Industrial Strategy,Intellectual Property Office,05/07/2017,Travel & Subsistence,IT Directorate,Veezu Ltd T/A Dragon Taxis (Newport),3206,7.80,Not Applicable,
Department for Business Energy and Industrial Strategy,Intellectual Property Office,06/07/2017,Information Technology,IT Directorate,Responsiv Solutions Limited,RSL0304,2041.09,Not Applicable,
Department for Business Energy and Industrial Strategy,Intellectual Property Office,04/07/2017,Information Technology,IT Directorate,Responsiv Solutions Limited,RSL0301,15600.00,Not Applicable,
Department for Business Energy and Industrial Strategy,Intellectual Property Office,19/07/2017,Information Technology,IT Directorate,Responsiv Solutions Limited,RSL0312,29406.72,Not Applicable,
Department for Business Energy and Industrial Strategy,Intellectual Property Office,04/07/2017,Travel & Subsistence,IT Directorate,Personal expenses,UK000001783,12.00,Not Applicable,
Department for Business Energy and Industrial Strategy,Intellectual Property Office,21/07/2017,Information Technology,IT Directorate,LA International Computer Consultants Lt,LA445063,1150.73,Not Applicable,
Department for Business Energy and Industrial Strategy,Intellectual Property Office,14/07/2017,Information Technology,IT Directorate,Capita Business Services  Ltd,LO10207024,2569.87,Not Applicable,
Department for Business Energy and Industrial Strategy,Intellectual Property Office,21/07/2017,Information Technology,IT Directorate,Capita Business Services  Ltd,LO10208597,2569.87,Not Applicable,
Department for Business Energy and Industrial Strategy,Intellectual Property Office,28/07/2017,Information Technology,IT Directorate,Capita Business Services  Ltd,LO10209846,2569.87,Not Applicable,
Department for Business Energy and Industrial Strategy,Intellectual Property Office,11/07/2017,Information Technology,IT Directorate,LA International Computer Consultants Lt,LA443546,4313.68,Not Applicable,
Department for Business Energy and Industrial Strategy,Intellectual Property Office,10/07/2017,Information Technology,IT Directorate,Equal Experts UK Limited,INV-2948,15000.00,Not Applicable,
Department for Business Energy and Industrial Strategy,Intellectual Property Office,11/07/2017,Information Technology,IT Directorate,SQA Consulting Limited,HSR-BB-AC-2080,22800.00,Not Applicable,
Department for Business Energy and Industrial Strategy,Intellectual Property Office,18/07/2017,Travel & Subsistence,IT Directorate,Personal expenses,UK000001868,15.65,Not Applicable,
Department for Business Energy and Industrial Strategy,Intellectual Property Office,14/07/2017,Information Technology,IT Directorate,Capita Business Services  Ltd,LO10207024,2509.49,Not Applicable,
Department for Business Energy and Industrial Strategy,Intellectual Property Office,21/07/2017,Information Technology,IT Directorate,Capita Business Services  Ltd,LO10208597,2618.00,Not Applicable,
Department for Business Energy and Industrial Strategy,Intellectual Property Office,04/07/2017,Staff Costs,IT Directorate,Sheridan Strategic Services Limited,1404,147.60,Not Applicable,
Department for Business Energy and Industrial Strategy,Intellectual Property Office,10/07/2017,Information Technology,IT Directorate,Bytes Software Services Ltd,483586,517.15,Not Applicable,
Department for Business Energy and Industrial Strategy,Intellectual Property Office,12/07/2017,Staff Costs,IT Directorate,QA Ltd,ICE465315,1053.00,Not Applicable,
Department for Business Energy and Industrial Strategy,Intellectual Property Office,13/07/2017,Information Technology,IT Directorate,Bytes Software Services Ltd,484042,1795.90,Not Applicable,
Department for Business Energy and Industrial Strategy,Intellectual Property Office,28/07/2017,Information Technology,IT Directorate,Capita Business Services  Ltd,LO10209846,2639.14,Not Applicable,
Department for Business Energy and Industrial Strategy,Intellectual Property Office,14/07/2017,Information Technology,IT Directorate,Capita Business Services  Ltd,LO10207024,2946.72,Not Applicable,
Department for Business Energy and Industrial Strategy,Intellectual Property Office,14/07/2017,Information Technology,IT Directorate,Capita Business Services  Ltd,LO10207024,2946.72,Not Applicable,
Department for Business Energy and Industrial Strategy,Intellectual Property Office,28/07/2017,Information Technology,IT Directorate,Capita Business Services  Ltd,LO10209846,2946.72,Not Applicable,
Department for Business Energy and Industrial Strategy,Intellectual Property Office,28/07/2017,Information Technology,IT Directorate,Capita Business Services  Ltd,LO10209846,2946.72,Not Applicable,
Department for Business Energy and Industrial Strategy,Intellectual Property Office,21/07/2017,Information Technology,IT Directorate,Capita Business Services  Ltd,LO10208597,2962.81,Not Applicable,
Department for Business Energy and Industrial Strategy,Intellectual Property Office,07/07/2017,Information Technology,IT Directorate,LA International Computer Consultants Lt,LA442497,3146.88,Not Applicable,
Department for Business Energy and Industrial Strategy,Intellectual Property Office,19/07/2017,Information Technology,IT Directorate,LA International Computer Consultants Lt,LA444367,3146.88,Not Applicable,
Department for Business Energy and Industrial Strategy,Intellectual Property Office,21/07/2017,Information Technology,IT Directorate,LA International Computer Consultants Lt,LA445064,3146.88,Not Applicable,
Department for Business Energy and Industrial Strategy,Intellectual Property Office,14/07/2017,Information Technology,IT Directorate,Capita Business Services  Ltd,LO10207024,5601.95,Not Applicable,
Department for Business Energy and Industrial Strategy,Intellectual Property Office,28/07/2017,Information Technology,IT Directorate,Capita Business Services  Ltd,LO10209846,5802.15,Not Applicable,
Department for Business Energy and Industrial Strategy,Intellectual Property Office,04/07/2017,Staff Costs,IT Directorate,Sheridan Strategic Services Limited,1402,9600.00,Not Applicable,
Department for Business Energy and Industrial Strategy,Intellectual Property Office,07/07/2017,Information Technology,IT Directorate,Capita Business Services  Ltd,LO10205526,11223.21,Not Applicable,
Department for Business Energy and Industrial Strategy,Intellectual Property Office,27/07/2017,Staff Costs,IT Directorate,QA Ltd,ISL142373,11400.00,Not Applicable,
Department for Business Energy and Industrial Strategy,Intellectual Property Office,20/07/2017,Miscellaneous Expenses General,IT Directorate,DevOpsGuys Limited,INV-0608,19200.00,Not Applicable,
Department for Business Energy and Industrial Strategy,Intellectual Property Office,10/07/2017,Travel & Subsistence,People Places & Serv Directorate,Personal expenses,UK000001825,2.00,Not Applicable,
Department for Business Energy and Industrial Strategy,Intellectual Property Office,05/07/2017,Travel & Subsistence,People Places & Serv Directorate,Veezu Ltd T/A Dragon Taxis (Newport),3206,15.60,Not Applicable,
Department for Business Energy and Industrial Strategy,Intellectual Property Office,10/07/2017,Travel & Subsistence,People Places & Serv Directorate,Personal expenses,UK000001827,20.00,Not Applicable,
Department for Business Energy and Industrial Strategy,Intellectual Property Office,10/07/2017,Travel & Subsistence,People Places & Serv Directorate,Personal expenses,UK000001828,21.69,Not Applicable,
Department for Business Energy and Industrial Strategy,Intellectual Property Office,10/07/2017,Travel & Subsistence,People Places & Serv Directorate,Personal expenses,UK000001829,24.09,Not Applicable,
Department for Business Energy and Industrial Strategy,Intellectual Property Office,10/07/2017,Travel & Subsistence,People Places & Serv Directorate,Personal expenses,OS000000389,143.03,Not Applicable,
Department for Business Energy and Industrial Strategy,Intellectual Property Office,12/07/2017,Travel & Subsistence,Innovation Directorate,Personal expenses,UK000001818,3.00,Not Applicable,
Department for Business Energy and Industrial Strategy,Intellectual Property Office,18/07/2017,Travel & Subsistence,Innovation Directorate,Personal expenses,UK0000001817,10.00,Not Applicable,
Department for Business Energy and Industrial Strategy,Intellectual Property Office,26/07/2017,Pay Costs,Innovation Directorate,Brook Street (UK) Ltd,30439732,244.44,Not Applicable,
Department for Business Energy and Industrial Strategy,Intellectual Property Office,18/07/2017,Pay Costs,Innovation Directorate,Brook Street (UK) Ltd,30513339,254.39,Not Applicable,
Department for Business Energy and Industrial Strategy,Intellectual Property Office,18/07/2017,Pay Costs,Innovation Directorate,Brook Street (UK) Ltd,30513339,407.40,Not Applicable,
Department for Business Energy and Industrial Strategy,Intellectual Property Office,18/07/2017,Pay Costs,Innovation Directorate,Brook Street (UK) Ltd,30513339,480.52,Not Applicable,
Department for Business Energy and Industrial Strategy,Intellectual Property Office,10/07/2017,Pay Costs,Innovation Directorate,Brook Street (UK) Ltd,30499749,480.73,Not Applicable,
Department for Business Energy and Industrial Strategy,Intellectual Property Office,24/07/2017,Pay Costs,Innovation Directorate,Brook Street (UK) Ltd,30525227,516.86,Not Applicable,
Department for Business Energy and Industrial Strategy,Intellectual Property Office,24/07/2017,Pay Costs,Innovation Directorate,Brook Street (UK) Ltd,30525227,554.06,Not Applicable,
Department for Business Energy and Industrial Strategy,Intellectual Property Office,10/07/2017,Pay Costs,Innovation Directorate,Brook Street (UK) Ltd,30499749,570.36,Not Applicable,
Department for Business Energy and Industrial Strategy,Intellectual Property Office,28/07/2017,Pay Costs,Innovation Directorate,Brook Street (UK) Ltd,30537256,570.36,Not Applicable,
Department for Business Energy and Industrial Strategy,Intellectual Property Office,28/07/2017,Pay Costs,Innovation Directorate,Brook Street (UK) Ltd,30537256,578.51,Not Applicable,
Department for Business Energy and Industrial Strategy,Intellectual Property Office,28/07/2017,Pay Costs,Innovation Directorate,Brook Street (UK) Ltd,30537256,585.50,Not Applicable,
Department for Business Energy and Industrial Strategy,Intellectual Property Office,18/07/2017,Pay Costs,Innovation Directorate,Brook Street (UK) Ltd,30513339,602.95,Not Applicable,
Department for Business Energy and Industrial Strategy,Intellectual Property Office,10/07/2017,Pay Costs,Innovation Directorate,Brook Street (UK) Ltd,30499749,617.81,Not Applicable,
Department for Business Energy and Industrial Strategy,Intellectual Property Office,24/07/2017,Pay Costs,Innovation Directorate,Brook Street (UK) Ltd,30525227,619.25,Not Applicable,
Department for Business Energy and Industrial Strategy,Intellectual Property Office,28/07/2017,Pay Costs,Innovation Directorate,Brook Street (UK) Ltd,30537256,625.88,Not Applicable,
Department for Business Energy and Industrial Strategy,Intellectual Property Office,10/07/2017,Pay Costs,Innovation Directorate,Brook Street (UK) Ltd,30499749,702.61,Not Applicable,
Department for Business Energy and Industrial Strategy,Intellectual Property Office,20/07/2017,Supporting UK Business,Innovation Directorate,NLA Media Access Limited,SCN207467,-883.20,Not Applicable,
Department for Business Energy and Industrial Strategy,Intellectual Property Office,05/07/2017,Travel & Subsistence,Innovation Directorate,Personal expenses,UK000001809,18.40,Not Applicable,
Department for Business Energy and Industrial Strategy,Intellectual Property Office,18/07/2017,Travel & Subsistence,Innovation Directorate,Personal expenses,UK000001848,19.74,Not Applicable,
Department for Business Energy and Industrial Strategy,Intellectual Property Office,18/07/2017,Travel & Subsistence,Innovation Directorate,Personal expenses,OS000000399,129.33,Not Applicable,
Department for Business Energy and Industrial Strategy,Intellectual Property Office,19/07/2017,Supporting UK Business,Innovation Directorate,Factiva Limited,79211488,846.14,Not Applicable,
Department for Business Energy and Industrial Strategy,Intellectual Property Office,20/07/2017,Supporting UK Business,Innovation Directorate,NLA Media Access Limited,Q393696,1363.20,Not Applicable,
Department for Business Energy and Industrial Strategy,Intellectual Property Office,04/07/2017,Miscellaneous Expenses General,Innovation Directorate,Personal expenses,UK000001798,27.35,Not Applicable,
Department for Business Energy and Industrial Strategy,Intellectual Property Office,05/07/2017,Travel & Subsistence,Innovation Directorate,Veezu Ltd T/A Dragon Taxis (Newport),3206,69.90,Not Applicable,
Department for Business Energy and Industrial Strategy,Intellectual Property Office,10/07/2017,Staff Costs,Innovation Directorate,Society of Business Economists,SBEC05-2290,120.00,Not Applicable,
Department for Business Energy and Industrial Strategy,Intellectual Property Office,21/07/2017,Travel & Subsistence,Innovation Directorate,Personal expenses,UK000001876,310.00,Not Applicable,
Department for Business Energy and Industrial Strategy,Intellectual Property Office,13/07/2017,Staff Costs,Innovation Directorate,llumine Training Ltd,16989,945.00,Not Applicable,
Department for Business Energy and Industrial Strategy,Intellectual Property Office,19/07/2017,Staff Costs,Innovation Directorate,LSR Training and Development Ltd,SR-618,2880.00,Not Applicable,
Department for Business Energy and Industrial Strategy,Intellectual Property Office,24/07/2017,Miscellaneous Expenses General,Innovation Directorate,Featured Artists Coalition Ltd,1080,12000.00,Not Applicable,
Department for Business Energy and Industrial Strategy,Intellectual Property Office,07/07/2017,Pay Costs,Innovation Directorate,"Dept Business, Energy & Industrial Strat",6.1511E+11,10351.02,Not Applicable,
Department for Business Energy and Industrial Strategy,Intellectual Property Office,07/07/2017,Miscellaneous Expenses General,Innovation Directorate,TNS UK LTD,260205101,23976.00,Not Applicable,
Department for Business Energy and Industrial Strategy,Intellectual Property Office,18/07/2017,Miscellaneous Expenses General,Innovation Directorate,Bureau Van Dijk Electronic Publishing Lt,770-17GB,30264.00,Not Applicable,
Department for Business Energy and Industrial Strategy,Intellectual Property Office,18/07/2017,Travel & Subsistence,Innovation Directorate,Personal expenses,UK000001894,3.25,Not Applicable,
Department for Business Energy and Industrial Strategy,Intellectual Property Office,21/07/2017,Travel & Subsistence,Innovation Directorate,Personal expenses,UK000001560,4.05,Not Applicable,
Department for Business Energy and Industrial Strategy,Intellectual Property Office,18/07/2017,Travel & Subsistence,Innovation Directorate,Personal expenses,UK000001865,4.85,Not Applicable,
Department for Business Energy and Industrial Strategy,Intellectual Property Office,21/07/2017,Travel & Subsistence,Innovation Directorate,Personal expenses,UK000001921,5.00,Not Applicable,
Department for Business Energy and Industrial Strategy,Intellectual Property Office,21/07/2017,Travel & Subsistence,Innovation Directorate,Personal expenses,UK000001910,10.40,Not Applicable,
Department for Business Energy and Industrial Strategy,Intellectual Property Office,05/07/2017,Travel & Subsistence,Innovation Directorate,Personal expenses,UK000001808,14.75,Not Applicable,
Department for Business Energy and Industrial Strategy,Intellectual Property Office,04/07/2017,Travel & Subsistence,Innovation Directorate,Personal expenses,UK000001722,15.25,Not Applicable,
Department for Business Energy and Industrial Strategy,Intellectual Property Office,18/07/2017,Travel & Subsistence,Innovation Directorate,Personal expenses,UK000001888,16.40,Not Applicable,
Department for Business Energy and Industrial Strategy,Intellectual Property Office,27/07/2017,Travel & Subsistence,Innovation Directorate,Personal expenses,UK0000001923,17.99,Not Applicable,
Department for Business Energy and Industrial Strategy,Intellectual Property Office,21/07/2017,Travel & Subsistence,Innovation Directorate,Personal expenses,UK000001562,18.55,Not Applicable,
Department for Business Energy and Industrial Strategy,Intellectual Property Office,04/07/2017,Travel & Subsistence,Innovation Directorate,Personal expenses,UK000001782,25.69,Not Applicable,
Department for Business Energy and Industrial Strategy,Intellectual Property Office,18/07/2017,Travel & Subsistence,Innovation Directorate,Personal expenses,UK000001776,32.98,Not Applicable,
Department for Business Energy and Industrial Strategy,Intellectual Property Office,21/07/2017,Travel & Subsistence,Innovation Directorate,Personal expenses,UK000001924,48.24,Not Applicable,
Department for Business Energy and Industrial Strategy,Intellectual Property Office,03/07/2017,Travel & Subsistence,Innovation Directorate,Personal expenses,UK000001777,83.70,Not Applicable,
Department for Business Energy and Industrial Strategy,Intellectual Property Office,03/07/2017,Travel & Subsistence,Innovation Directorate,Zenith,16027,135.68,Not Applicable,
Department for Business Energy and Industrial Strategy,Intellectual Property Office,21/07/2017,Travel & Subsistence,Innovation Directorate,Personal expenses,UK000001912,115.90,Not Applicable,
Department for Business Energy and Industrial Strategy,Intellectual Property Office,05/07/2017,Travel & Subsistence,Innovation Directorate,Veezu Ltd T/A Dragon Taxis (Newport),3206,165.78,Not Applicable,
Department for Business Energy and Industrial Strategy,Intellectual Property Office,31/07/2017,Travel & Subsistence,Innovation Directorate,Personal expenses,UK000001976,15.00,Not Applicable,
Department for Business Energy and Industrial Strategy,Intellectual Property Office,18/07/2017,Travel & Subsistence,Innovation Directorate,Personal expenses,UK000001901,25.79,Not Applicable,
Department for Business Energy and Industrial Strategy,Intellectual Property Office,03/07/2017,Travel & Subsistence,Innovation Directorate,Personal expenses,UK000001768,119.96,Not Applicable,
Department for Business Energy and Industrial Strategy,Intellectual Property Office,05/07/2017,Travel & Subsistence,Innovation Directorate,Zenith,16636,146.81,Not Applicable,
Department for Business Energy and Industrial Strategy,Intellectual Property Office,12/07/2017,Marketing & Publicity,Innovation Directorate,Bolt Removals Ltd,INV-001022,894.00,Not Applicable,
Department for Business Energy and Industrial Strategy,Intellectual Property Office,27/07/2017,Marketing & Publicity,Innovation Directorate,Children's Radio UK Ltd,990,12000.00,Not Applicable,
Department for Business Energy and Industrial Strategy,Intellectual Property Office,12/07/2017,Marketing & Publicity,Innovation Directorate,Design and Technology Association,2231,25000.00,Not Applicable,
Department for Business Energy and Industrial Strategy,Intellectual Property Office,20/07/2017,Travel & Subsistence,Innovation Directorate,Personal expenses,UK000001906,5.00,Not Applicable,
Department for Business Energy and Industrial Strategy,Intellectual Property Office,27/07/2017,Travel & Subsistence,Innovation Directorate,Personal expenses,UK000001928,6.55,Not Applicable,
Department for Business Energy and Industrial Strategy,Intellectual Property Office,18/07/2017,Travel & Subsistence,Innovation Directorate,Personal expenses,UK000001862,6.95,Not Applicable,
Department for Business Energy and Industrial Strategy,Intellectual Property Office,18/07/2017,Travel & Subsistence,Innovation Directorate,Personal expenses,UK000001839,24.00,Not Applicable,
Department for Business Energy and Industrial Strategy,Intellectual Property Office,18/07/2017,Travel & Subsistence,Innovation Directorate,Personal expenses,UK000001895,30.00,Not Applicable,
Department for Business Energy and Industrial Strategy,Intellectual Property Office,05/07/2017,Travel & Subsistence,Innovation Directorate,Personal expenses,UK000001780,32.27,Not Applicable,
Department for Business Energy and Industrial Strategy,Intellectual Property Office,05/07/2017,Travel & Subsistence,Innovation Directorate,Personal expenses,UK000001787,33.98,Not Applicable,
Department for Business Energy and Industrial Strategy,Intellectual Property Office,04/07/2017,Travel & Subsistence,Innovation Directorate,Personal expenses,UK000001788,35.36,Not Applicable,
Department for Business Energy and Industrial Strategy,Intellectual Property Office,19/07/2017,Postage & Delivery Costs,Innovation Directorate,RICO LOGISTICS LTD,SINRLLFS00042623,44.48,Not Applicable,
Department for Business Energy and Industrial Strategy,Intellectual Property Office,18/07/2017,Travel & Subsistence,Innovation Directorate,Personal expenses,UK000001856,44.00,Not Applicable,
Department for Business Energy and Industrial Strategy,Intellectual Property Office,06/07/2017,Travel & Subsistence,Innovation Directorate,Personal expenses,UK000001820,44.40,Not Applicable,
Department for Business Energy and Industrial Strategy,Intellectual Property Office,05/07/2017,Travel & Subsistence,Innovation Directorate,Zenith,16635,54.02,Not Applicable,
Department for Business Energy and Industrial Strategy,Intellectual Property Office,05/07/2017,Travel & Subsistence,Innovation Directorate,Zenith,16643,54.02,Not Applicable,
Department for Business Energy and Industrial Strategy,Intellectual Property Office,13/07/2017,Travel & Subsistence,Innovation Directorate,Zenith,17525,54.02,Not Applicable,
Department for Business Energy and Industrial Strategy,Intellectual Property Office,12/07/2017,Travel & Subsistence,Innovation Directorate,Zenith,17526,54.02,Not Applicable,
Department for Business Energy and Industrial Strategy,Intellectual Property Office,27/07/2017,Travel & Subsistence,Innovation Directorate,Zenith,19036,54.02,Not Applicable,
Department for Business Energy and Industrial Strategy,Intellectual Property Office,04/07/2017,Travel & Subsistence,Innovation Directorate,Personal expenses,UK000001785,47.27,Not Applicable,
Department for Business Energy and Industrial Strategy,Intellectual Property Office,21/07/2017,Travel & Subsistence,Innovation Directorate,Zenith,RHI01784015,58.48,Not Applicable,
Department for Business Energy and Industrial Strategy,Intellectual Property Office,20/07/2017,Travel & Subsistence,Innovation Directorate,Personal expenses,UK000001908,49.09,Not Applicable,
Department for Business Energy and Industrial Strategy,Intellectual Property Office,18/07/2017,Travel & Subsistence,Innovation Directorate,Personal expenses,UK000001857,50.60,Not Applicable,
Department for Business Energy and Industrial Strategy,Intellectual Property Office,25/07/2017,Travel & Subsistence,Innovation Directorate,Personal expenses,UK000001939,54.51,Not Applicable,
Department for Business Energy and Industrial Strategy,Intellectual Property Office,18/07/2017,Travel & Subsistence,Innovation Directorate,Personal expenses,UK000001873,55.01,Not Applicable,
Department for Business Energy and Industrial Strategy,Intellectual Property Office,06/07/2017,Travel & Subsistence,Innovation Directorate,Personal expenses,UK000001812,64.10,Not Applicable,
Department for Business Energy and Industrial Strategy,Intellectual Property Office,13/07/2017,Travel & Subsistence,Innovation Directorate,Zenith,17522,77.38,Not Applicable,
Department for Business Energy and Industrial Strategy,Intellectual Property Office,18/07/2017,Travel & Subsistence,Innovation Directorate,Personal expenses,UK000001863,65.41,Not Applicable,
Department for Business Energy and Industrial Strategy,Intellectual Property Office,18/07/2017,Travel & Subsistence,Innovation Directorate,Personal expenses,UK000001835,82.61,Not Applicable,
Department for Business Energy and Industrial Strategy,Intellectual Property Office,05/07/2017,Travel & Subsistence,Innovation Directorate,Personal expenses,UK000001781,83.69,Not Applicable,
Department for Business Energy and Industrial Strategy,Intellectual Property Office,03/07/2017,Travel & Subsistence,Innovation Directorate,Zenith,16026,108.05,Not Applicable,
Department for Business Energy and Industrial Strategy,Intellectual Property Office,11/07/2017,Travel & Subsistence,Innovation Directorate,Zenith,16638,108.05,Not Applicable,
Department for Business Energy and Industrial Strategy,Intellectual Property Office,13/07/2017,Travel & Subsistence,Innovation Directorate,Zenith,17035,108.05,Not Applicable,
Department for Business Energy and Industrial Strategy,Intellectual Property Office,06/07/2017,Travel & Subsistence,Innovation Directorate,Zenith,17036,108.05,Not Applicable,
Department for Business Energy and Industrial Strategy,Intellectual Property Office,12/07/2017,Travel & Subsistence,Innovation Directorate,Zenith,17524,108.05,Not Applicable,
Department for Business Energy and Industrial Strategy,Intellectual Property Office,10/07/2017,Travel & Subsistence,Innovation Directorate,Personal expenses,UK000001729,96.48,Not Applicable,
Department for Business Energy and Industrial Strategy,Intellectual Property Office,12/07/2017,Marketing & Publicity,Innovation Directorate,BIC Staffordshire,110798,99.70,Not Applicable,
Department for Business Energy and Industrial Strategy,Intellectual Property Office,20/07/2017,Travel & Subsistence,Innovation Directorate,Zenith,17961,110.00,Not Applicable,
Department for Business Energy and Industrial Strategy,Intellectual Property Office,05/07/2017,Travel & Subsistence,Innovation Directorate,Veezu Ltd T/A Dragon Taxis (Newport),3206,109.32,Not Applicable,
Department for Business Energy and Industrial Strategy,Intellectual Property Office,12/07/2017,Travel & Subsistence,Innovation Directorate,Zenith,17523,135.68,Not Applicable,
Department for Business Energy and Industrial Strategy,Intellectual Property Office,21/07/2017,Travel & Subsistence,Innovation Directorate,Zenith,18608,135.68,Not Applicable,
Department for Business Energy and Industrial Strategy,Intellectual Property Office,18/07/2017,Marketing & Publicity,Innovation Directorate,Enterprise Educators UK,2860,125.00,Not Applicable,
Department for Business Energy and Industrial Strategy,Intellectual Property Office,05/07/2017,Travel & Subsistence,Innovation Directorate,Personal expenses,UK000001804,126.43,Not Applicable,
Department for Business Energy and Industrial Strategy,Intellectual Property Office,06/07/2017,Travel & Subsistence,Innovation Directorate,Personal expenses,UK000001803,127.02,Not Applicable,
Department for Business Energy and Industrial Strategy,Intellectual Property Office,18/07/2017,Travel & Subsistence,Innovation Directorate,Personal expenses,UK000001899,127.43,Not Applicable,
Department for Business Energy and Industrial Strategy,Intellectual Property Office,04/07/2017,Marketing & Publicity,Innovation Directorate,Goldborough Studio Ltd,GS0233,175.00,Not Applicable,
Department for Business Energy and Industrial Strategy,Intellectual Property Office,20/07/2017,Travel & Subsistence,Innovation Directorate,Zenith,18484,180.91,Not Applicable,
Department for Business Energy and Industrial Strategy,Intellectual Property Office,21/07/2017,Travel & Subsistence,Innovation Directorate,Zenith,18703,180.91,Not Applicable,
Department for Business Energy and Industrial Strategy,Intellectual Property Office,18/07/2017,Travel & Subsistence,Innovation Directorate,Personal expenses,UK000001854,172.90,Not Applicable,
Department for Business Energy and Industrial Strategy,Intellectual Property Office,18/07/2017,Travel & Subsistence,Innovation Directorate,Personal expenses,UK000001855,186.45,Not Applicable,
Department for Business Energy and Industrial Strategy,Intellectual Property Office,10/07/2017,Travel & Subsistence,Innovation Directorate,Zenith,16385,226.14,Not Applicable,
Department for Business Energy and Industrial Strategy,Intellectual Property Office,14/07/2017,Travel & Subsistence,Innovation Directorate,Zenith,17529,226.14,Not Applicable,
Department for Business Energy and Industrial Strategy,Intellectual Property Office,12/07/2017,Travel & Subsistence,Innovation Directorate,Zenith,17530,226.14,Not Applicable,
Department for Business Energy and Industrial Strategy,Intellectual Property Office,25/07/2017,Travel & Subsistence,Innovation Directorate,Personal expenses,UK000001938,193.25,Not Applicable,
Department for Business Energy and Industrial Strategy,Intellectual Property Office,28/07/2017,Marketing & Publicity,Innovation Directorate,Get connected,1481,240.00,Not Applicable,
Department for Business Energy and Industrial Strategy,Intellectual Property Office,03/07/2017,Marketing & Publicity,Innovation Directorate,BIC Staffordshire,110795,290.80,Not Applicable,
Department for Business Energy and Industrial Strategy,Intellectual Property Office,14/07/2017,Marketing & Publicity,Innovation Directorate,BUSINESS KINETICS LTD,17-07-2551-45,390.00,Not Applicable,
Department for Business Energy and Industrial Strategy,Intellectual Property Office,04/07/2017,Staff Costs,Innovation Directorate,GovNet Communications,122465,594.00,Not Applicable,
Department for Business Energy and Industrial Strategy,Intellectual Property Office,19/07/2017,Marketing & Publicity,Innovation Directorate,New Start Exhibitions Limited,ACL17144,600.00,Not Applicable,
Department for Business Energy and Industrial Strategy,Intellectual Property Office,25/07/2017,Marketing & Publicity,Innovation Directorate,Aardman Animations Ltd,34178,820.80,Not Applicable,
Department for Business Energy and Industrial Strategy,Intellectual Property Office,21/07/2017,Marketing & Publicity,Innovation Directorate,Christopher Myant,IPO 2017/3 CTMID,800.00,Not Applicable,
Department for Business Energy and Industrial Strategy,Intellectual Property Office,27/07/2017,Marketing & Publicity,Innovation Directorate,Events Northern Limited Client A/C,MLE2017044,1044.00,Not Applicable,
Department for Business Energy and Industrial Strategy,Intellectual Property Office,24/07/2017,Marketing & Publicity,Innovation Directorate,THE BUSINESS FUNDING SHOW LIMITED,E220,1200.00,Not Applicable,
Department for Business Energy and Industrial Strategy,Intellectual Property Office,10/07/2017,Marketing & Publicity,Innovation Directorate,Aardman Animations Ltd,33920,1641.60,Not Applicable,
Department for Business Energy and Industrial Strategy,Intellectual Property Office,06/07/2017,Travel & Subsistence,Innovation Directorate,Personal expenses,UK000001815,20.00,Not Applicable,
Department for Business Energy and Industrial Strategy,Intellectual Property Office,25/07/2017,Travel & Subsistence,Innovation Directorate,Personal expenses,UK000001940,32.80,Not Applicable,
Department for Business Energy and Industrial Strategy,Intellectual Property Office,06/07/2017,Miscellaneous Expenses General,Innovation Directorate,Alison Orr,MC220617,49.70,Not Applicable,
Department for Business Energy and Industrial Strategy,Intellectual Property Office,14/07/2017,Travel & Subsistence,Innovation Directorate,Personal expenses,UKPO001,120.78,Not Applicable,
Department for Business Energy and Industrial Strategy,Intellectual Property Office,04/07/2017,Supporting UK Business,Innovation Directorate,IS Media Ltd (t/a People for Research),6736,607.20,Not Applicable,
Department for Business Energy and Industrial Strategy,Intellectual Property Office,14/07/2017,Supporting UK Business,Innovation Directorate,IS Media Ltd (t/a People for Research),6786,1860.00,Not Applicable,
Department for Business Energy and Industrial Strategy,Intellectual Property Office,27/07/2017,Supporting UK Business,Innovation Directorate,Murgitroyd & Company Ltd,13942A-17,2396.88,Not Applicable,
Department for Business Energy and Industrial Strategy,Intellectual Property Office,19/07/2017,Supporting UK Business,Innovation Directorate,HARPER MACLEOD LLP,D904477,2520.00,Not Applicable,
Department for Business Energy and Industrial Strategy,Intellectual Property Office,25/07/2017,Supporting UK Business,Innovation Directorate,Nash Matthews,79482,2599.20,Not Applicable,
Department for Business Energy and Industrial Strategy,Intellectual Property Office,19/07/2017,Supporting UK Business,Innovation Directorate,Creation IP Ltd,IV1776,2600.00,Not Applicable,
Department for Business Energy and Industrial Strategy,Intellectual Property Office,19/07/2017,Supporting UK Business,Innovation Directorate,Dehns,365137,2600.00,Not Applicable,
Department for Business Energy and Industrial Strategy,Intellectual Property Office,06/07/2017,Supporting UK Business,Innovation Directorate,Harrison Goddard Foote,442285,2600.00,Not Applicable,
Department for Business Energy and Industrial Strategy,Intellectual Property Office,13/07/2017,Supporting UK Business,Innovation Directorate,Alistair Hindle Associates,170703,2600.00,Not Applicable,
Department for Business Energy and Industrial Strategy,Intellectual Property Office,24/07/2017,Supporting UK Business,Innovation Directorate,Chapman IP Ltd,16975,2600.00,Not Applicable,
Department for Business Energy and Industrial Strategy,Intellectual Property Office,04/07/2017,Supporting UK Business,Innovation Directorate,Lincoln IP,7222,2600.00,Not Applicable,
Department for Business Energy and Industrial Strategy,Intellectual Property Office,18/07/2017,Supporting UK Business,Innovation Directorate,Marks & Clerk LLP,3227654,2600.00,Not Applicable,
Department for Business Energy and Industrial Strategy,Intellectual Property Office,18/07/2017,Supporting UK Business,Innovation Directorate,Mewburn  Ellis LLP,34757,2600.00,Not Applicable,
Department for Business Energy and Industrial Strategy,Intellectual Property Office,19/07/2017,Supporting UK Business,Innovation Directorate,LAWRIE INTELLECTUAL PROPERTY,110002,2600.00,Not Applicable,
Department for Business Energy and Industrial Strategy,Intellectual Property Office,19/07/2017,Supporting UK Business,Innovation Directorate,LAWRIE INTELLECTUAL PROPERTY,110024,2600.00,Not Applicable,
Department for Business Energy and Industrial Strategy,Intellectual Property Office,04/07/2017,Supporting UK Business,Innovation Directorate,STEPHENS SCOWN LLP,77442,2600.00,Not Applicable,
Department for Business Energy and Industrial Strategy,Intellectual Property Office,19/07/2017,Supporting UK Business,Innovation Directorate,CAMERON INTELLECTUAL PROPERTY LTD,2509-17,2600.00,Not Applicable,
Department for Business Energy and Industrial Strategy,Intellectual Property Office,21/07/2017,Supporting UK Business,Innovation Directorate,CAMERON INTELLECTUAL PROPERTY LTD,2515-17,2600.00,Not Applicable,
Department for Business Energy and Industrial Strategy,Intellectual Property Office,13/07/2017,Supporting UK Business,Innovation Directorate,MacRoberts LLP,I-17-5260,2600.00,Not Applicable,
Department for Business Energy and Industrial Strategy,Intellectual Property Office,27/07/2017,Supporting UK Business,Innovation Directorate,Murgitroyd & Company Ltd,18341B-17-B,2600.00,Not Applicable,
Department for Business Energy and Industrial Strategy,Intellectual Property Office,19/07/2017,Supporting UK Business,Innovation Directorate,Cloch Solicitors,17-0089,2600.00,Not Applicable,
Department for Business Energy and Industrial Strategy,Intellectual Property Office,19/07/2017,Supporting UK Business,Innovation Directorate,Ancient Hume Ltd,4023,2600.00,Not Applicable,
Department for Business Energy and Industrial Strategy,Intellectual Property Office,06/07/2017,Supporting UK Business,Innovation Directorate,MBM Commercial LLP,10-14083,2600.00,Not Applicable,
Department for Business Energy and Industrial Strategy,Intellectual Property Office,07/07/2017,Supporting UK Business,Innovation Directorate,MBM Commercial LLP,10-14147,2600.00,Not Applicable,
Department for Business Energy and Industrial Strategy,Intellectual Property Office,26/07/2017,Supporting UK Business,Innovation Directorate,Ashfords LLP,617583,2600.00,Not Applicable,
Department for Business Energy and Industrial Strategy,Intellectual Property Office,13/07/2017,Supporting UK Business,Innovation Directorate,Ouzman IP Limited,280,2600.00,Not Applicable,
Department for Business Energy and Industrial Strategy,Intellectual Property Office,24/07/2017,Supporting UK Business,Innovation Directorate,WP Thompson,470489,2600.00,Not Applicable,
Department for Business Energy and Industrial Strategy,Intellectual Property Office,24/07/2017,Supporting UK Business,Innovation Directorate,Shoosmiths LLP,9100185392,2600.00,Not Applicable,
Department for Business Energy and Industrial Strategy,Intellectual Property Office,27/07/2017,Supporting UK Business,Innovation Directorate,Schlich Ltd,7175,2600.00,Not Applicable,
Department for Business Energy and Industrial Strategy,Intellectual Property Office,24/07/2017,Supporting UK Business,Innovation Directorate,Mohun Intellectual Property Limited,IA08-0002,2600.00,Not Applicable,
Department for Business Energy and Industrial Strategy,Intellectual Property Office,06/07/2017,Supporting UK Business,Innovation Directorate,Graham Watt & Co LLP,23097,2600.00,Not Applicable,
Department for Business Energy and Industrial Strategy,Intellectual Property Office,03/07/2017,Supporting UK Business,Innovation Directorate,Slingsby Partners LLP,17-1895,2600.00,Not Applicable,
Department for Business Energy and Industrial Strategy,Intellectual Property Office,04/07/2017,Supporting UK Business,Innovation Directorate,EIP Europe LLP,63507,2600.00,Not Applicable,
Department for Business Energy and Industrial Strategy,Intellectual Property Office,04/07/2017,Supporting UK Business,Innovation Directorate,Sweetinburgh & Windsor Ltd,3147,2600.00,Not Applicable,
Department for Business Energy and Industrial Strategy,Intellectual Property Office,21/07/2017,Supporting UK Business,Innovation Directorate,Definition IP Ltd,129,2600.00,Not Applicable,
Department for Business Energy and Industrial Strategy,Intellectual Property Office,21/07/2017,Supporting UK Business,Innovation Directorate,Definition IP Ltd,131,2600.00,Not Applicable,
Department for Business Energy and Industrial Strategy,Intellectual Property Office,27/07/2017,Supporting UK Business,Innovation Directorate,Definition IP Ltd,141,2600.00,Not Applicable,
Department for Business Energy and Industrial Strategy,Intellectual Property Office,21/07/2017,Supporting UK Business,Innovation Directorate,K2 IP Limited,514,2600.00,Not Applicable,
Department for Business Energy and Industrial Strategy,Intellectual Property Office,18/07/2017,Travel & Subsistence,Copyright and Enforcement Directorate,Personal expenses,UK000001893,4.80,Not Applicable,
Department for Business Energy and Industrial Strategy,Intellectual Property Office,18/07/2017,Travel & Subsistence,Copyright and Enforcement Directorate,Personal expenses,UK000001900,13.30,Not Applicable,
Department for Business Energy and Industrial Strategy,Intellectual Property Office,18/07/2017,Travel & Subsistence,Copyright and Enforcement Directorate,Personal expenses,OS000000407,21.22,Not Applicable,
Department for Business Energy and Industrial Strategy,Intellectual Property Office,28/07/2017,Travel & Subsistence,Copyright and Enforcement Directorate,Personal expenses,UK000001974,25.00,Not Applicable,
Department for Business Energy and Industrial Strategy,Intellectual Property Office,06/07/2017,Travel & Subsistence,Copyright and Enforcement Directorate,Personal expenses,UK000001789,28.80,Not Applicable,
Department for Business Energy and Industrial Strategy,Intellectual Property Office,28/07/2017,Travel & Subsistence,Copyright and Enforcement Directorate,Personal expenses,UK000001971,46.00,Not Applicable,
Department for Business Energy and Industrial Strategy,Intellectual Property Office,18/07/2017,Travel & Subsistence,Copyright and Enforcement Directorate,Personal expenses,OS000000406,49.58,Not Applicable,
Department for Business Energy and Industrial Strategy,Intellectual Property Office,05/07/2017,Travel & Subsistence,Copyright and Enforcement Directorate,Veezu Ltd T/A Dragon Taxis (Newport),3206,62.40,Not Applicable,
Department for Business Energy and Industrial Strategy,Intellectual Property Office,28/07/2017,Travel & Subsistence,Copyright and Enforcement Directorate,Personal expenses,OS000000417,65.41,Not Applicable,
Department for Business Energy and Industrial Strategy,Intellectual Property Office,18/07/2017,Travel & Subsistence,Copyright and Enforcement Directorate,Personal expenses,UK000001861,4.76,Not Applicable,
Department for Business Energy and Industrial Strategy,Intellectual Property Office,12/07/2017,Travel & Subsistence,Copyright and Enforcement Directorate,Personal expenses,UK000001775,10.00,Not Applicable,
Department for Business Energy and Industrial Strategy,Intellectual Property Office,05/07/2017,Travel & Subsistence,Copyright and Enforcement Directorate,Veezu Ltd T/A Dragon Taxis (Newport),3206,15.60,Not Applicable,
Department for Business Energy and Industrial Strategy,Intellectual Property Office,18/07/2017,Travel & Subsistence,Copyright and Enforcement Directorate,Personal expenses,UK000001885,17.28,Not Applicable,
Department for Business Energy and Industrial Strategy,Intellectual Property Office,18/07/2017,Travel & Subsistence,Copyright and Enforcement Directorate,Personal expenses,UK000001886,17.78,Not Applicable,
Department for Business Energy and Industrial Strategy,Intellectual Property Office,06/07/2017,Travel & Subsistence,Copyright and Enforcement Directorate,Personal expenses,UK000001819,21.72,Not Applicable,
Department for Business Energy and Industrial Strategy,Intellectual Property Office,06/07/2017,Staff Costs,Copyright and Enforcement Directorate,Training Bytesize Ltd,4700,36.00,Not Applicable,
Department for Business Energy and Industrial Strategy,Intellectual Property Office,20/07/2017,Travel & Subsistence,Copyright and Enforcement Directorate,Personal expenses,UK000001904,50.00,Not Applicable,
Department for Business Energy and Industrial Strategy,Intellectual Property Office,18/07/2017,Travel & Subsistence,Copyright and Enforcement Directorate,Personal expenses,UK000001836,57.22,Not Applicable,
Department for Business Energy and Industrial Strategy,Intellectual Property Office,20/07/2017,Travel & Subsistence,Copyright and Enforcement Directorate,Personal expenses,UK000001909,62.98,Not Applicable,
Department for Business Energy and Industrial Strategy,Intellectual Property Office,21/07/2017,Travel & Subsistence,Copyright and Enforcement Directorate,Personal expenses,UK000001837,65.40,Not Applicable,
Department for Business Energy and Industrial Strategy,Intellectual Property Office,28/07/2017,Travel & Subsistence,Copyright and Enforcement Directorate,Personal expenses,UK000001932,67.97,Not Applicable,
Department for Business Energy and Industrial Strategy,Intellectual Property Office,05/07/2017,Travel & Subsistence,Copyright and Enforcement Directorate,Personal expenses,OS000000388,98.13,Not Applicable,
Department for Business Energy and Industrial Strategy,Intellectual Property Office,17/07/2017,Travel & Subsistence,Copyright and Enforcement Directorate,Zenith,17527,158.21,Not Applicable,
Department for Business Energy and Industrial Strategy,Intellectual Property Office,20/07/2017,Travel & Subsistence,Copyright and Enforcement Directorate,QEB Management Company Ltd,6,224.04,Not Applicable,
Department for Business Energy and Industrial Strategy,Intellectual Property Office,31/07/2017,Travel & Subsistence,Copyright and Enforcement Directorate,Personal expenses,OS000000415,287.74,Not Applicable,
Department for Business Energy and Industrial Strategy,Intellectual Property Office,18/07/2017,Travel & Subsistence,Copyright and Enforcement Directorate,Personal expenses,OS000000384,473.76,Not Applicable,
Department for Business Energy and Industrial Strategy,Intellectual Property Office,05/07/2017,Travel & Subsistence,Copyright and Enforcement Directorate,Veezu Ltd T/A Dragon Taxis (Newport),3206,7.80,Not Applicable,
Department for Business Energy and Industrial Strategy,Intellectual Property Office,11/07/2017,Supporting UK Business,Copyright and Enforcement Directorate,Companies House,269626982,4.00,Not Applicable,
Department for Business Energy and Industrial Strategy,Intellectual Property Office,28/07/2017,Legal & Hearings,Copyright and Enforcement Directorate,Crawfords Delivery Services,CD-191435,22.08,Not Applicable,
Department for Business Energy and Industrial Strategy,Intellectual Property Office,20/07/2017,Legal & Hearings,Copyright and Enforcement Directorate,HM REVENUE & CUSTOMS,XG006707068645,22.69,Not Applicable,
Department for Business Energy and Industrial Strategy,Intellectual Property Office,06/07/2017,Miscellaneous Expenses General,Copyright and Enforcement Directorate,Debbie Berkley,CED SOCIAL 06JUL,23.99,Not Applicable,
Department for Business Energy and Industrial Strategy,Intellectual Property Office,05/07/2017,Supporting UK Business,Copyright and Enforcement Directorate,Experian Ltd,IEX3001914847,211.38,Not Applicable,
Department for Business Energy and Industrial Strategy,Intellectual Property Office,04/07/2017,Supporting UK Business,Copyright and Enforcement Directorate,whiteBULLET Solutions Ltd,IPO-003-17,3000.00,Not Applicable,
Department for Business Energy and Industrial Strategy,Intellectual Property Office,18/07/2017,Supporting UK Business,Copyright and Enforcement Directorate,DAN ANTHONY PRESENTATIONS LTD,175,4000.00,Not Applicable,
Department for Business Energy and Industrial Strategy,Intellectual Property Office,06/07/2017,Supporting UK Business,Copyright and Enforcement Directorate,TREBLE 5 TREBLE 1 LTD,SIT003318,7200.00,Not Applicable,
Department for Business Energy and Industrial Strategy,Intellectual Property Office,06/07/2017,Supporting UK Business,Copyright and Enforcement Directorate,Copyright Hub Foundation,TCH0083,25000.00,Not Applicable,
Department for Business Energy and Industrial Strategy,Intellectual Property Office,03/07/2017,Travel & Subsistence,Finance Directorate,Personal expenses,UK000001779,32.80,Not Applicable,
Department for Business Energy and Industrial Strategy,Intellectual Property Office,25/07/2017,Travel & Subsistence,Finance Directorate,Personal expenses,UK000001936,9.00,Not Applicable,
Department for Business Energy and Industrial Strategy,Intellectual Property Office,27/07/2017,Travel & Subsistence,Finance Directorate,Personal expenses,UK000001937,10.80,Not Applicable,
Department for Business Energy and Industrial Strategy,Intellectual Property Office,21/07/2017,Travel & Subsistence,Finance Directorate,Personal expenses,UK000001851,18.00,Not Applicable,
Department for Business Energy and Industrial Strategy,Intellectual Property Office,25/07/2017,Staff Costs,Finance Directorate,Susan Chapman,BOOKS,69.00,Not Applicable,
Department for Business Energy and Industrial Strategy,Intellectual Property Office,24/07/2017,Pay Costs,Finance Directorate,Brook Street (UK) Ltd,30525227,97.78,Not Applicable,
Department for Business Energy and Industrial Strategy,Intellectual Property Office,24/07/2017,Pay Costs,Finance Directorate,Brook Street (UK) Ltd,30525227,236.29,Not Applicable,
Department for Business Energy and Industrial Strategy,Intellectual Property Office,10/07/2017,Pay Costs,Finance Directorate,Brook Street (UK) Ltd,30499749,260.74,Not Applicable,
Department for Business Energy and Industrial Strategy,Intellectual Property Office,18/07/2017,Pay Costs,Finance Directorate,Brook Street (UK) Ltd,30513339,350.36,Not Applicable,
Department for Business Energy and Industrial Strategy,Intellectual Property Office,18/07/2017,Pay Costs,Finance Directorate,Brook Street (UK) Ltd,30513339,359.38,Not Applicable,
Department for Business Energy and Industrial Strategy,Intellectual Property Office,10/07/2017,Pay Costs,Finance Directorate,Brook Street (UK) Ltd,30499749,366.66,Not Applicable,
Department for Business Energy and Industrial Strategy,Intellectual Property Office,28/07/2017,Pay Costs,Finance Directorate,Brook Street (UK) Ltd,30537256,366.66,Not Applicable,
Department for Business Energy and Industrial Strategy,Intellectual Property Office,18/07/2017,Pay Costs,Finance Directorate,Brook Street (UK) Ltd,30513339,374.81,Not Applicable,
Department for Business Energy and Industrial Strategy,Intellectual Property Office,10/07/2017,Pay Costs,Finance Directorate,Brook Street (UK) Ltd,30499749,480.73,Not Applicable,
Department for Business Energy and Industrial Strategy,Intellectual Property Office,18/07/2017,Pay Costs,Finance Directorate,Brook Street (UK) Ltd,30513339,480.73,Not Applicable,
Department for Business Energy and Industrial Strategy,Intellectual Property Office,28/07/2017,Pay Costs,Finance Directorate,Brook Street (UK) Ltd,30537256,480.73,Not Applicable,
Department for Business Energy and Industrial Strategy,Intellectual Property Office,10/07/2017,Pay Costs,Finance Directorate,Brook Street (UK) Ltd,30499749,488.88,Not Applicable,
Department for Business Energy and Industrial Strategy,Intellectual Property Office,28/07/2017,Pay Costs,Finance Directorate,Brook Street (UK) Ltd,30537256,525.54,Not Applicable,
Department for Business Energy and Industrial Strategy,Intellectual Property Office,10/07/2017,Pay Costs,Finance Directorate,Brook Street (UK) Ltd,30499749,574.43,Not Applicable,
Department for Business Energy and Industrial Strategy,Intellectual Property Office,10/07/2017,Pay Costs,Finance Directorate,Brook Street (UK) Ltd,30499749,602.95,Not Applicable,
Department for Business Energy and Industrial Strategy,Intellectual Property Office,18/07/2017,Pay Costs,Finance Directorate,Brook Street (UK) Ltd,30513339,602.95,Not Applicable,
Department for Business Energy and Industrial Strategy,Intellectual Property Office,24/07/2017,Pay Costs,Finance Directorate,Brook Street (UK) Ltd,30525227,602.95,Not Applicable,
Department for Business Energy and Industrial Strategy,Intellectual Property Office,24/07/2017,Pay Costs,Finance Directorate,Brook Street (UK) Ltd,30525227,602.95,Not Applicable,
Department for Business Energy and Industrial Strategy,Intellectual Property Office,28/07/2017,Pay Costs,Finance Directorate,Brook Street (UK) Ltd,30537256,602.95,Not Applicable,
Department for Business Energy and Industrial Strategy,Intellectual Property Office,28/07/2017,Pay Costs,Finance Directorate,Brook Street (UK) Ltd,30537256,602.95,Not Applicable,
Department for Business Energy and Industrial Strategy,Intellectual Property Office,28/07/2017,Pay Costs,Finance Directorate,Brook Street (UK) Ltd,30537256,605.70,Not Applicable,
Department for Business Energy and Industrial Strategy,Intellectual Property Office,24/07/2017,Pay Costs,Finance Directorate,Brook Street (UK) Ltd,30525227,609.73,Not Applicable,
Department for Business Energy and Industrial Strategy,Intellectual Property Office,24/07/2017,Pay Costs,Finance Directorate,Brook Street (UK) Ltd,30525227,611.10,Not Applicable,
Department for Business Energy and Industrial Strategy,Intellectual Property Office,18/07/2017,Pay Costs,Finance Directorate,Brook Street (UK) Ltd,30513339,615.17,Not Applicable,
Department for Business Energy and Industrial Strategy,Intellectual Property Office,28/07/2017,Pay Costs,Finance Directorate,Brook Street (UK) Ltd,30537256,615.17,Not Applicable,
Department for Business Energy and Industrial Strategy,Intellectual Property Office,10/07/2017,Pay Costs,Finance Directorate,Brook Street (UK) Ltd,30499749,617.81,Not Applicable,
Department for Business Energy and Industrial Strategy,Intellectual Property Office,13/07/2017,Pay Costs,Finance Directorate,Companies House,S0001909095,4231.00,Not Applicable,
Department for Business Energy and Industrial Strategy,Intellectual Property Office,18/07/2017,Pay Costs,Finance Directorate,Companies House,S0001909099,4231.61,Not Applicable,
Department for Business Energy and Industrial Strategy,Intellectual Property Office,18/07/2017,Pay Costs,Finance Directorate,Companies House,S0001909100,4231.61,Not Applicable,
Department for Business Energy and Industrial Strategy,Intellectual Property Office,19/07/2017,Office Supplies,Finance Directorate,Antalis,954760,-301.97,Not Applicable,
Department for Business Energy and Industrial Strategy,Intellectual Property Office,12/07/2017,Office Supplies,Finance Directorate,Banner Group Limited,33386911,24.62,Not Applicable,
Department for Business Energy and Industrial Strategy,Intellectual Property Office,17/07/2017,Office Supplies,Finance Directorate,South East Drawing Office Ltd,12473,107.40,Not Applicable,
Department for Business Energy and Industrial Strategy,Intellectual Property Office,26/07/2017,Office Supplies,Finance Directorate,Total Print Finishing Services Ltd,39449,159.84,Not Applicable,
Department for Business Energy and Industrial Strategy,Intellectual Property Office,28/07/2017,Office Supplies,Finance Directorate,Antalis,6907849,265.68,Not Applicable,
Department for Business Energy and Industrial Strategy,Intellectual Property Office,12/07/2017,Office Supplies,Finance Directorate,Antalis,6958848,265.68,Not Applicable,
Department for Business Energy and Industrial Strategy,Intellectual Property Office,04/07/2017,Office Supplies,Finance Directorate,Blake Envelopes,SI0000512035,405.24,Not Applicable,
Department for Business Energy and Industrial Strategy,Intellectual Property Office,07/07/2017,Office Supplies,Finance Directorate,South East Drawing Office Ltd,12453,419.40,Not Applicable,
Department for Business Energy and Industrial Strategy,Intellectual Property Office,28/07/2017,Office Supplies,Finance Directorate,South East Drawing Office Ltd,12583,431.40,Not Applicable,
Department for Business Energy and Industrial Strategy,Intellectual Property Office,21/07/2017,Office Supplies,Finance Directorate,South East Drawing Office Ltd,12544,542.38,Not Applicable,
Department for Business Energy and Industrial Strategy,Intellectual Property Office,19/07/2017,Misc Expenses Finance,Finance Directorate,G4S Cash Services (UK) Ltd,2082761,583.97,Not Applicable,
Department for Business Energy and Industrial Strategy,Intellectual Property Office,28/07/2017,Office Supplies,Finance Directorate,Antalis,6937388,681.42,Not Applicable,
Department for Business Energy and Industrial Strategy,Intellectual Property Office,18/07/2017,Office Supplies,Finance Directorate,Antalis,6973438,681.42,Not Applicable,
Department for Business Energy and Industrial Strategy,Intellectual Property Office,13/07/2017,Information Technology,Finance Directorate,Bottomline Technologies Ltd,INV547779,2160.00,Not Applicable,
Department for Business Energy and Industrial Strategy,Intellectual Property Office,12/07/2017,Office Supplies,Finance Directorate,Banner Group Limited,9169013,2572.10,Not Applicable,
Department for Business Energy and Industrial Strategy,Intellectual Property Office,19/07/2017,Office Supplies,Finance Directorate,Antalis,6957891,3528.28,Not Applicable,
Department for Business Energy and Industrial Strategy,Intellectual Property Office,28/07/2017,Information Technology,Finance Directorate,Due North Ltd,DNO-TSI2300577,17940.00,Not Applicable,
Department for Business Energy and Industrial Strategy,Intellectual Property Office,14/07/2017,Legal & Hearings,Finance Directorate,Department For Business Innovation & Ski,6.1511E+11,166250.00,Not Applicable,
Department for Business Energy and Industrial Strategy,Intellectual Property Office,04/07/2017,Travel & Subsistence,People Places & Serv Directorate,Personal expenses,UK000001795,7.00,Not Applicable,
Department for Business Energy and Industrial Strategy,Intellectual Property Office,04/07/2017,Travel & Subsistence,People Places & Serv Directorate,Personal expenses,UK000001794,8.00,Not Applicable,
Department for Business Energy and Industrial Strategy,Intellectual Property Office,05/07/2017,Travel & Subsistence,People Places & Serv Directorate,Personal expenses,UK000001800,10.10,Not Applicable,
Department for Business Energy and Industrial Strategy,Intellectual Property Office,05/07/2017,Travel & Subsistence,People Places & Serv Directorate,Personal expenses,UK000001801,10.10,Not Applicable,
Department for Business Energy and Industrial Strategy,Intellectual Property Office,05/07/2017,Travel & Subsistence,People Places & Serv Directorate,Personal expenses,UK000001802,10.10,Not Applicable,
Department for Business Energy and Industrial Strategy,Intellectual Property Office,06/07/2017,Miscellaneous Expenses General,People Places & Serv Directorate,OH Assist Limited,INV0013291,15.12,Not Applicable,
Department for Business Energy and Industrial Strategy,Intellectual Property Office,18/07/2017,Travel & Subsistence,People Places & Serv Directorate,Personal expenses,UK000001730,18.20,Not Applicable,
Department for Business Energy and Industrial Strategy,Intellectual Property Office,21/07/2017,Miscellaneous Expenses General,People Places & Serv Directorate,Ceri Carter,CA200717,19.99,Not Applicable,
Department for Business Energy and Industrial Strategy,Intellectual Property Office,06/07/2017,Miscellaneous Expenses General,People Places & Serv Directorate,Debbie Berkley,EYECARE,20.00,Not Applicable,
Department for Business Energy and Industrial Strategy,Intellectual Property Office,18/07/2017,Staff Costs,People Places & Serv Directorate,Personal expenses,AH000000155,25.00,Not Applicable,
Department for Business Energy and Industrial Strategy,Intellectual Property Office,18/07/2017,Staff Costs,People Places & Serv Directorate,Personal expenses,AH00000150,25.00,Not Applicable,
Department for Business Energy and Industrial Strategy,Intellectual Property Office,18/07/2017,Staff Costs,People Places & Serv Directorate,Personal expenses,AH000000147,25.00,Not Applicable,
Department for Business Energy and Industrial Strategy,Intellectual Property Office,19/07/2017,Staff Costs,People Places & Serv Directorate,Leanne Davies,DCS180717,25.00,Not Applicable,
Department for Business Energy and Industrial Strategy,Intellectual Property Office,18/07/2017,Staff Costs,People Places & Serv Directorate,Personal expenses,AH000000149,25.00,Not Applicable,
Department for Business Energy and Industrial Strategy,Intellectual Property Office,18/07/2017,Staff Costs,People Places & Serv Directorate,Personal expenses,AH000000151,25.00,Not Applicable,
Department for Business Energy and Industrial Strategy,Intellectual Property Office,20/07/2017,Staff Costs,People Places & Serv Directorate,Personal expenses,AH000000157,25.00,Not Applicable,
Department for Business Energy and Industrial Strategy,Intellectual Property Office,20/07/2017,Staff Costs,People Places & Serv Directorate,Personal expenses,AH000000156,25.00,Not Applicable,
Department for Business Energy and Industrial Strategy,Intellectual Property Office,18/07/2017,Travel & Subsistence,People Places & Serv Directorate,Personal expenses,UK000001871,36.26,Not Applicable,
Department for Business Energy and Industrial Strategy,Intellectual Property Office,05/07/2017,Miscellaneous Expenses General,People Places & Serv Directorate,Personal expenses,AH000000141,80.00,Not Applicable,
Department for Business Energy and Industrial Strategy,Intellectual Property Office,05/07/2017,Staff Costs,People Places & Serv Directorate,Teamworks,2789-3.17-IPO-MG,90.00,Not Applicable,
Department for Business Energy and Industrial Strategy,Intellectual Property Office,05/07/2017,Information Technology,People Places & Serv Directorate,Specialist Computer Centres Plc,OP-M318858,145.68,Not Applicable,
Department for Business Energy and Industrial Strategy,Intellectual Property Office,21/07/2017,Miscellaneous Expenses General,People Places & Serv Directorate,TC Group Ltd,74387,159.00,Not Applicable,
Department for Business Energy and Industrial Strategy,Intellectual Property Office,05/07/2017,Staff Costs,People Places & Serv Directorate,Teamworks,2825-17-IPO-SUP-,135.00,Not Applicable,
Department for Business Energy and Industrial Strategy,Intellectual Property Office,28/07/2017,Staff Costs,People Places & Serv Directorate,Teamworks,2840-17-IPO-SUP-,135.00,Not Applicable,
Department for Business Energy and Industrial Strategy,Intellectual Property Office,18/07/2017,Staff Costs,People Places & Serv Directorate,Personal expenses,AH000000148,153.00,Not Applicable,
Department for Business Energy and Industrial Strategy,Intellectual Property Office,05/07/2017,Staff Costs,People Places & Serv Directorate,Personal expenses,AH000000140,153.00,Not Applicable,
Department for Business Energy and Industrial Strategy,Intellectual Property Office,18/07/2017,Staff Costs,People Places & Serv Directorate,Personal expenses,AH000000146,180.00,Not Applicable,
Department for Business Energy and Industrial Strategy,Intellectual Property Office,10/07/2017,Legal & Hearings,People Places & Serv Directorate,Capital Law LLP,20039607,222.00,Not Applicable,
Department for Business Energy and Industrial Strategy,Intellectual Property Office,18/07/2017,Staff Costs,People Places & Serv Directorate,Stonewall Equality Ltd,53296,234.00,Not Applicable,
Department for Business Energy and Industrial Strategy,Intellectual Property Office,14/07/2017,Staff Costs,People Places & Serv Directorate,British Computer Society,1388413,202.50,Not Applicable,
Department for Business Energy and Industrial Strategy,Intellectual Property Office,05/07/2017,Staff Costs,People Places & Serv Directorate,Personal expenses,AH000000142,207.00,Not Applicable,
Department for Business Energy and Industrial Strategy,Intellectual Property Office,18/07/2017,Staff Costs,People Places & Serv Directorate,Personal expenses,AH000000143,207.00,Not Applicable,
Department for Business Energy and Industrial Strategy,Intellectual Property Office,18/07/2017,Staff Costs,People Places & Serv Directorate,Personal expenses,AH000000144,207.00,Not Applicable,
Department for Business Energy and Industrial Strategy,Intellectual Property Office,18/07/2017,Staff Costs,People Places & Serv Directorate,Personal expenses,AH000000145,207.00,Not Applicable,
Department for Business Energy and Industrial Strategy,Intellectual Property Office,26/07/2017,Miscellaneous Expenses General,People Places & Serv Directorate,Ava's Lunch Box,210,525.00,Not Applicable,
Department for Business Energy and Industrial Strategy,Intellectual Property Office,21/07/2017,Miscellaneous Expenses General,People Places & Serv Directorate,Health Assured Ltd,2500,606.70,Not Applicable,
Department for Business Energy and Industrial Strategy,Intellectual Property Office,27/07/2017,Staff Costs,People Places & Serv Directorate,CHWARAE TEG,1726,954.00,Not Applicable,
Department for Business Energy and Industrial Strategy,Intellectual Property Office,28/07/2017,Staff Costs,People Places & Serv Directorate,HM REVENUE & CUSTOMS,1800001680,970.20,Not Applicable,
Department for Business Energy and Industrial Strategy,Intellectual Property Office,06/07/2017,Staff Costs,People Places & Serv Directorate,CIPD ENTERPRISES LTD,410293-CDT,975.04,Not Applicable,
Department for Business Energy and Industrial Strategy,Intellectual Property Office,20/07/2017,Staff Costs,People Places & Serv Directorate,University of South Wales (Pontypridd),507,1584.00,Not Applicable,
Department for Business Energy and Industrial Strategy,Intellectual Property Office,07/07/2017,Legal & Hearings,People Places & Serv Directorate,Capital Law LLP,20039589,2820.00,Not Applicable,
Department for Business Energy and Industrial Strategy,Intellectual Property Office,05/07/2017,Information Technology,People Places & Serv Directorate,Specialist Computer Centres Plc,OP-M315862,3985.85,Not Applicable,
Department for Business Energy and Industrial Strategy,Intellectual Property Office,03/07/2017,Pay Costs,People Places & Serv Directorate,Driver & Vehicle Licensing Agency,9300188761,3500.98,Not Applicable,
Department for Business Energy and Industrial Strategy,Intellectual Property Office,07/07/2017,Legal & Hearings,People Places & Serv Directorate,Capital Law LLP,20039593,4278.00,Not Applicable,
Department for Business Energy and Industrial Strategy,Intellectual Property Office,28/07/2017,Staff Costs,People Places & Serv Directorate,CIPD ENTERPRISES LTD,410629-CDT,5020.03,Not Applicable,
Department for Business Energy and Industrial Strategy,Intellectual Property Office,19/07/2017,Staff Costs,People Places & Serv Directorate,Sodexo Motivation Solutions UK Ltd,3333466,8309.59,Not Applicable,
Department for Business Energy and Industrial Strategy,Intellectual Property Office,19/07/2017,Staff Costs,People Places & Serv Directorate,Sodexo Motivation Solutions UK Ltd,3333637,9832.32,Not Applicable,
Department for Business Energy and Industrial Strategy,Intellectual Property Office,04/07/2017,Staff Costs,People Places & Serv Directorate,CIPD ENTERPRISES LTD,410292-CDT,15372.00,Not Applicable,
Department for Business Energy and Industrial Strategy,Intellectual Property Office,19/07/2017,Staff Costs,People Places & Serv Directorate,Hays Specialist Recruitment,1007713496,21420.00,Not Applicable,
Department for Business Energy and Industrial Strategy,Intellectual Property Office,20/07/2017,Travel & Subsistence,People Places & Serv Directorate,Personal expenses,UK000001917,4.05,Not Applicable,
Department for Business Energy and Industrial Strategy,Intellectual Property Office,20/07/2017,Travel & Subsistence,People Places & Serv Directorate,Personal expenses,UK000001914,4.50,Not Applicable,
Department for Business Energy and Industrial Strategy,Intellectual Property Office,28/07/2017,Postage & Delivery Costs,People Places & Serv Directorate,Allstar Business Solutions Ltd,E2007152264,7.00,Not Applicable,
Department for Business Energy and Industrial Strategy,Intellectual Property Office,10/07/2017,Travel & Subsistence,People Places & Serv Directorate,Personal expenses,UK000001822,6.75,Not Applicable,
Department for Business Energy and Industrial Strategy,Intellectual Property Office,20/07/2017,Travel & Subsistence,People Places & Serv Directorate,Personal expenses,UK000001911,8.00,Not Applicable,
Department for Business Energy and Industrial Strategy,Intellectual Property Office,20/07/2017,Travel & Subsistence,People Places & Serv Directorate,Personal expenses,UK000001913,9.00,Not Applicable,
Department for Business Energy and Industrial Strategy,Intellectual Property Office,18/07/2017,Travel & Subsistence,People Places & Serv Directorate,Personal expenses,UK000001892,10.00,Not Applicable,
Department for Business Energy and Industrial Strategy,Intellectual Property Office,28/07/2017,Postage & Delivery Costs,People Places & Serv Directorate,Royal Mail,9054828326,14.00,Not Applicable,
Department for Business Energy and Industrial Strategy,Intellectual Property Office,20/07/2017,Travel & Subsistence,People Places & Serv Directorate,Personal expenses,UK000001916,18.00,Not Applicable,
Department for Business Energy and Industrial Strategy,Intellectual Property Office,21/07/2017,Travel & Subsistence,People Places & Serv Directorate,Personal expenses,UK000001926,18.90,Not Applicable,
Department for Business Energy and Industrial Strategy,Intellectual Property Office,04/07/2017,Travel & Subsistence,People Places & Serv Directorate,Personal expenses,UK000001796,20.00,Not Applicable,
Department for Business Energy and Industrial Strategy,Intellectual Property Office,12/07/2017,Miscellaneous Expenses General,People Places & Serv Directorate,P.J. JONES,764760,22.00,Not Applicable,
Department for Business Energy and Industrial Strategy,Intellectual Property Office,18/07/2017,Travel & Subsistence,People Places & Serv Directorate,Personal expenses,UK000001869,30.00,Not Applicable,
Department for Business Energy and Industrial Strategy,Intellectual Property Office,20/07/2017,Travel & Subsistence,People Places & Serv Directorate,Personal expenses,UK000001915,31.00,Not Applicable,
Department for Business Energy and Industrial Strategy,Intellectual Property Office,05/07/2017,Travel & Subsistence,People Places & Serv Directorate,Veezu Ltd T/A Dragon Taxis (Newport),3206,31.56,Not Applicable,
Department for Business Energy and Industrial Strategy,Intellectual Property Office,18/07/2017,Travel & Subsistence,People Places & Serv Directorate,Personal expenses,UK000001902,40.00,Not Applicable,
Department for Business Energy and Industrial Strategy,Intellectual Property Office,18/07/2017,Travel & Subsistence,People Places & Serv Directorate,Personal expenses,UK000001891,45.50,Not Applicable,
Department for Business Energy and Industrial Strategy,Intellectual Property Office,19/07/2017,Postage & Delivery Costs,People Places & Serv Directorate,Allstar Business Solutions Ltd,E2008507104,56.81,Not Applicable,
Department for Business Energy and Industrial Strategy,Intellectual Property Office,10/07/2017,Miscellaneous Expenses General,People Places & Serv Directorate,PPL UK,3375300,79.87,Not Applicable,
Department for Business Energy and Industrial Strategy,Intellectual Property Office,10/07/2017,Miscellaneous Expenses General,People Places & Serv Directorate,PPL UK,3378940,79.87,Not Applicable,
Department for Business Energy and Industrial Strategy,Intellectual Property Office,10/07/2017,Travel & Subsistence,People Places & Serv Directorate,Personal expenses,UK000001830,72.76,Not Applicable,
Department for Business Energy and Industrial Strategy,Intellectual Property Office,26/07/2017,Miscellaneous Expenses General,People Places & Serv Directorate,Performing Right Society LTD,5237549,123.89,Not Applicable,
Department for Business Energy and Industrial Strategy,Intellectual Property Office,06/07/2017,Miscellaneous Expenses General,People Places & Serv Directorate,TV Licensing,3672239759,147.00,Not Applicable,
Department for Business Energy and Industrial Strategy,Intellectual Property Office,24/07/2017,Travel & Subsistence,People Places & Serv Directorate,Zenith,18705,182.48,Not Applicable,
Department for Business Energy and Industrial Strategy,Intellectual Property Office,19/07/2017,Postage & Delivery Costs,People Places & Serv Directorate,Neopost Finance Ltd,92353105,266.26,Not Applicable,
Department for Business Energy and Industrial Strategy,Intellectual Property Office,25/07/2017,Miscellaneous Expenses General,People Places & Serv Directorate,HMS Mobility Solutions Ltd,3073,276.00,Not Applicable,
Department for Business Energy and Industrial Strategy,Intellectual Property Office,27/07/2017,Staff Costs,People Places & Serv Directorate,British Red Cross,N1121541,322.80,Not Applicable,
Department for Business Energy and Industrial Strategy,Intellectual Property Office,24/07/2017,Staff Costs,People Places & Serv Directorate,British Red Cross,N1134100,322.80,Not Applicable,
Department for Business Energy and Industrial Strategy,Intellectual Property Office,10/07/2017,Office Supplies,People Places & Serv Directorate,Menzies Distribution Ltd t/a Jones Yarre,282348,269.48,Not Applicable,
Department for Business Energy and Industrial Strategy,Intellectual Property Office,17/07/2017,Postage & Delivery Costs,People Places & Serv Directorate,Neopost Finance Ltd,2017046252,357.23,Not Applicable,
Department for Business Energy and Industrial Strategy,Intellectual Property Office,27/07/2017,Accommodation,People Places & Serv Directorate,Senator International Ltd,S01394974,582.38,Not Applicable,
Department for Business Energy and Industrial Strategy,Intellectual Property Office,04/07/2017,Staff Costs,People Places & Serv Directorate,Quadrilect Ltd,34668,834.00,Not Applicable,
Department for Business Energy and Industrial Strategy,Intellectual Property Office,14/07/2017,Postage & Delivery Costs,People Places & Serv Directorate,DHL International (UK) Ltd,BRS0570397,790.94,Not Applicable,
Department for Business Energy and Industrial Strategy,Intellectual Property Office,28/07/2017,Postage & Delivery Costs,People Places & Serv Directorate,Parcelforce Worldwide,9054846898,988.36,Not Applicable,
Department for Business Energy and Industrial Strategy,Intellectual Property Office,20/07/2017,Miscellaneous Expenses General,People Places & Serv Directorate,Zenith,18482,1033.20,Not Applicable,
Department for Business Energy and Industrial Strategy,Intellectual Property Office,05/07/2017,Postage & Delivery Costs,People Places & Serv Directorate,DHL International (UK) Ltd,BRS0537756,1029.41,Not Applicable,
Department for Business Energy and Industrial Strategy,Intellectual Property Office,18/07/2017,Office Supplies,People Places & Serv Directorate,Blake Envelopes,SI0000513880,1290.00,Not Applicable,
Department for Business Energy and Industrial Strategy,Intellectual Property Office,03/07/2017,Postage & Delivery Costs,People Places & Serv Directorate,Royal Mail,9054692256,1656.87,Not Applicable,
Department for Business Energy and Industrial Strategy,Intellectual Property Office,17/07/2017,Postage & Delivery Costs,People Places & Serv Directorate,Royal Mail,9054779354,1880.18,Not Applicable,
Department for Business Energy and Industrial Strategy,Intellectual Property Office,19/07/2017,Postage & Delivery Costs,People Places & Serv Directorate,DHL International (UK) Ltd,BRS0587319,2516.90,Not Applicable,
Department for Business Energy and Industrial Strategy,Intellectual Property Office,28/07/2017,Postage & Delivery Costs,People Places & Serv Directorate,DHL International (UK) Ltd,BRS0604443,2871.96,Not Applicable,
Department for Business Energy and Industrial Strategy,Intellectual Property Office,11/07/2017,Postage & Delivery Costs,People Places & Serv Directorate,CitySprint (UK) Ltd,2212266,7405.31,Not Applicable,
Department for Business Energy and Industrial Strategy,Intellectual Property Office,25/07/2017,Postage & Delivery Costs,People Places & Serv Directorate,Neopost Finance Ltd,NE9000335-24JUL,10000.00,Not Applicable,
Department for Business Energy and Industrial Strategy,Intellectual Property Office,05/07/2017,Travel & Subsistence,People Places & Serv Directorate,Veezu Ltd T/A Dragon Taxis (Newport),3206,7.80,Not Applicable,
Department for Business Energy and Industrial Strategy,Intellectual Property Office,27/07/2017,Travel & Subsistence,People Places & Serv Directorate,Personal expenses,UK0000001925,57.00,Not Applicable,
Department for Business Energy and Industrial Strategy,Intellectual Property Office,11/07/2017,Travel & Subsistence,People Places & Serv Directorate,Personal expenses,UK000001840,2.20,Not Applicable,
Department for Business Energy and Industrial Strategy,Intellectual Property Office,11/07/2017,Travel & Subsistence,People Places & Serv Directorate,Personal expenses,UK000001842,5.00,Not Applicable,
Department for Business Energy and Industrial Strategy,Intellectual Property Office,18/07/2017,Travel & Subsistence,People Places & Serv Directorate,Personal expenses,UK000001846,5.00,Not Applicable,
Department for Business Energy and Industrial Strategy,Intellectual Property Office,11/07/2017,Travel & Subsistence,People Places & Serv Directorate,Personal expenses,UK000001841,10.00,Not Applicable,
Department for Business Energy and Industrial Strategy,Intellectual Property Office,18/07/2017,Travel & Subsistence,People Places & Serv Directorate,Personal expenses,UK000001853,10.65,Not Applicable,
Department for Business Energy and Industrial Strategy,Intellectual Property Office,11/07/2017,Travel & Subsistence,People Places & Serv Directorate,Personal expenses,UK000001838,14.05,Not Applicable,
Department for Business Energy and Industrial Strategy,Intellectual Property Office,18/07/2017,Travel & Subsistence,People Places & Serv Directorate,Personal expenses,UK000001867,14.80,Not Applicable,
Department for Business Energy and Industrial Strategy,Intellectual Property Office,18/07/2017,Travel & Subsistence,People Places & Serv Directorate,Personal expenses,UK000001866,14.80,Not Applicable,
Department for Business Energy and Industrial Strategy,Intellectual Property Office,11/07/2017,Travel & Subsistence,People Places & Serv Directorate,Personal expenses,UK000001834,18.20,Not Applicable,
Department for Business Energy and Industrial Strategy,Intellectual Property Office,18/07/2017,Travel & Subsistence,People Places & Serv Directorate,Personal expenses,UK000001847,19.70,Not Applicable,
Department for Business Energy and Industrial Strategy,Intellectual Property Office,18/07/2017,Travel & Subsistence,People Places & Serv Directorate,Personal expenses,UK000001870,52.59,Not Applicable,
Department for Business Energy and Industrial Strategy,Intellectual Property Office,28/07/2017,Pay Costs,People Places & Serv Directorate,Brook Street (UK) Ltd,30537256,198.66,Not Applicable,
Department for Business Energy and Industrial Strategy,Intellectual Property Office,24/07/2017,Pay Costs,People Places & Serv Directorate,Brook Street (UK) Ltd,30525227,215.57,Not Applicable,
Department for Business Energy and Industrial Strategy,Intellectual Property Office,28/07/2017,Office Machinery,People Places & Serv Directorate,Total Print Finishing Services Ltd,39460,420.00,Not Applicable,
Department for Business Energy and Industrial Strategy,Intellectual Property Office,10/07/2017,Pay Costs,People Places & Serv Directorate,Brook Street (UK) Ltd,30499749,437.04,Not Applicable,
Department for Business Energy and Industrial Strategy,Intellectual Property Office,11/07/2017,Pay Costs,People Places & Serv Directorate,Acorn Recruitment Ltd,844588,495.96,Not Applicable,
Department for Business Energy and Industrial Strategy,Intellectual Property Office,18/07/2017,Pay Costs,People Places & Serv Directorate,Brook Street (UK) Ltd,30513339,505.68,Not Applicable,
Department for Business Energy and Industrial Strategy,Intellectual Property Office,25/07/2017,Pay Costs,People Places & Serv Directorate,Acorn Recruitment Ltd,846015,512.68,Not Applicable,
Department for Business Energy and Industrial Strategy,Intellectual Property Office,28/07/2017,Pay Costs,People Places & Serv Directorate,Brook Street (UK) Ltd,30537256,518.20,Not Applicable,
Department for Business Energy and Industrial Strategy,Intellectual Property Office,18/07/2017,Pay Costs,People Places & Serv Directorate,Acorn Recruitment Ltd,845296,525.96,Not Applicable,
Department for Business Energy and Industrial Strategy,Intellectual Property Office,10/07/2017,Pay Costs,People Places & Serv Directorate,Brook Street (UK) Ltd,30499749,530.10,Not Applicable,
Department for Business Energy and Industrial Strategy,Intellectual Property Office,18/07/2017,Pay Costs,People Places & Serv Directorate,Brook Street (UK) Ltd,30513339,546.30,Not Applicable,
Department for Business Energy and Industrial Strategy,Intellectual Property Office,24/07/2017,Pay Costs,People Places & Serv Directorate,Brook Street (UK) Ltd,30525227,546.30,Not Applicable,
Department for Business Energy and Industrial Strategy,Intellectual Property Office,28/07/2017,Pay Costs,People Places & Serv Directorate,Brook Street (UK) Ltd,30537256,546.30,Not Applicable,
Department for Business Energy and Industrial Strategy,Intellectual Property Office,24/07/2017,Pay Costs,People Places & Serv Directorate,Brook Street (UK) Ltd,30525227,556.25,Not Applicable,
Department for Business Energy and Industrial Strategy,Intellectual Property Office,18/07/2017,Pay Costs,People Places & Serv Directorate,Acorn Recruitment Ltd,845295,583.73,Not Applicable,
Department for Business Energy and Industrial Strategy,Intellectual Property Office,25/07/2017,Pay Costs,People Places & Serv Directorate,Acorn Recruitment Ltd,846014,597.60,Not Applicable,
Department for Business Energy and Industrial Strategy,Intellectual Property Office,07/07/2017,Pay Costs,People Places & Serv Directorate,Acorn Recruitment Ltd,843540,616.56,Not Applicable,
Department for Business Energy and Industrial Strategy,Intellectual Property Office,07/07/2017,Pay Costs,People Places & Serv Directorate,Acorn Recruitment Ltd,843539,629.69,Not Applicable,
Department for Business Energy and Industrial Strategy,Intellectual Property Office,11/07/2017,Pay Costs,People Places & Serv Directorate,Acorn Recruitment Ltd,844589,649.25,Not Applicable,
Department for Business Energy and Industrial Strategy,Intellectual Property Office,26/07/2017,Office Machinery,People Places & Serv Directorate,Xerox (UK) Ltd,1607081143,2499.60,Not Applicable,
Department for Business Energy and Industrial Strategy,Intellectual Property Office,07/07/2017,Office Machinery,People Places & Serv Directorate,Xerox (UK) Ltd,1607024617,4087.34,Not Applicable,
Department for Business Energy and Industrial Strategy,Intellectual Property Office,10/07/2017,Office Machinery,People Places & Serv Directorate,Xerox (UK) Ltd,1607024616,4734.56,Not Applicable,
Department for Business Energy and Industrial Strategy,Intellectual Property Office,10/07/2017,Office Machinery,People Places & Serv Directorate,Xerox (UK) Ltd,1607024615,5847.38,Not Applicable,
Department for Business Energy and Industrial Strategy,Intellectual Property Office,05/07/2017,Office Machinery,People Places & Serv Directorate,Xerox (UK) Ltd,900161292,5964.78,Not Applicable,
Department for Business Energy and Industrial Strategy,Intellectual Property Office,18/07/2017,Travel & Subsistence,People Places & Serv Directorate,Personal expenses,UK000001884,4.25,Not Applicable,
Department for Business Energy and Industrial Strategy,Intellectual Property Office,18/07/2017,Travel & Subsistence,People Places & Serv Directorate,Personal expenses,UK000001883,14.65,Not Applicable,
Department for Business Energy and Industrial Strategy,Intellectual Property Office,18/07/2017,Travel & Subsistence,People Places & Serv Directorate,Personal expenses,UK000001897,16.68,Not Applicable,
Department for Business Energy and Industrial Strategy,Intellectual Property Office,06/07/2017,Staff Costs,People Places & Serv Directorate,Acorn Recruitment Ltd,APS02991,1020.00,Not Applicable,
Department for Business Energy and Industrial Strategy,Intellectual Property Office,07/07/2017,Computer Contracts,People Places & Serv Directorate,HM TREASURY,40253,96021.60,Not Applicable,
Department for Business Energy and Industrial Strategy,Intellectual Property Office,17/07/2017,Miscellaneous Expenses General,People Places & Serv Directorate,Iain Maclean,SB010217,536.99,Not Applicable,
Department for Business Energy and Industrial Strategy,Intellectual Property Office,20/07/2017,Miscellaneous Expenses General,People Places & Serv Directorate,HM REVENUE & CUSTOMS,XG006707068645,4861.39,Not Applicable,
Department for Business Energy and Industrial Strategy,Intellectual Property Office,25/07/2017,Computer Contracts,People Places & Serv Directorate,HM TREASURY,40280,20700.00,Not Applicable,
Department for Business Energy and Industrial Strategy,Intellectual Property Office,21/07/2017,Accommodation,People Places & Serv Directorate,Senator International Ltd,R00090092,126.00,Not Applicable,
Department for Business Energy and Industrial Strategy,Intellectual Property Office,04/07/2017,Accommodation,People Places & Serv Directorate,Posturite Ltd,INV0456103,339.99,Not Applicable,
Department for Business Energy and Industrial Strategy,Intellectual Property Office,26/07/2017,Staff Costs,People Places & Serv Directorate,Involve Me Training and Development Ltd,148,400.00,Not Applicable,
Department for Business Energy and Industrial Strategy,Intellectual Property Office,13/07/2017,Accommodation,People Places & Serv Directorate,Senator International Ltd,S01392338,583.92,Not Applicable,
Department for Business Energy and Industrial Strategy,Intellectual Property Office,20/07/2017,Staff Costs,People Places & Serv Directorate,JL Training & Consultancy,1447,600.00,Not Applicable,
Department for Business Energy and Industrial Strategy,Intellectual Property Office,11/07/2017,Accommodation,People Places & Serv Directorate,Healthy Workstations Ltd,30956,1147.52,Not Applicable,
Department for Business Energy and Industrial Strategy,Intellectual Property Office,03/07/2017,Accommodation,People Places & Serv Directorate,Posturite Ltd,INV0454215,1161.00,Not Applicable,
Department for Business Energy and Industrial Strategy,Intellectual Property Office,06/07/2017,Accommodation,People Places & Serv Directorate,Senator International Ltd,S01390979,1207.50,Not Applicable,
Department for Business Energy and Industrial Strategy,Intellectual Property Office,05/07/2017,Staff Costs,People Places & Serv Directorate,The Clive Davis Partnership Ltd.,CDSC-2709,1440.00,Not Applicable,
Department for Business Energy and Industrial Strategy,Intellectual Property Office,20/07/2017,Staff Costs,People Places & Serv Directorate,Involve Me Training and Development Ltd,149,1200.00,Not Applicable,
Department for Business Energy and Industrial Strategy,Intellectual Property Office,20/07/2017,Staff Costs,People Places & Serv Directorate,Involve Me Training and Development Ltd,150,1800.00,Not Applicable,
Department for Business Energy and Industrial Strategy,Intellectual Property Office,12/07/2017,Accommodation,People Places & Serv Directorate,Senator International Ltd,S01392337,3377.35,Not Applicable,
Department for Business Energy and Industrial Strategy,Intellectual Property Office,26/07/2017,Staff Costs,People Places & Serv Directorate,GovNet Communications,123511,5400.00,Not Applicable,
Department for Business Energy and Industrial Strategy,Intellectual Property Office,05/07/2017,Staff Costs,People Places & Serv Directorate,KPMG LLP (CSL),5501459490,5448.00,Not Applicable,
Department for Business Energy and Industrial Strategy,Intellectual Property Office,19/07/2017,Accommodation,People Places & Serv Directorate,Senator International Ltd,S01393395,34354.38,Not Applicable,
Department for Business Energy and Industrial Strategy,Intellectual Property Office,25/07/2017,Accommodation,People Places & Serv Directorate,Total Security Protection Ltd,27272,-1050.00,Not Applicable,
Department for Business Energy and Industrial Strategy,Intellectual Property Office,06/07/2017,Accommodation,People Places & Serv Directorate,Kabin Hire Ltd,478879,72.00,Not Applicable,
Department for Business Energy and Industrial Strategy,Intellectual Property Office,06/07/2017,Accommodation,People Places & Serv Directorate,Kabin Hire Ltd,478881,72.00,Not Applicable,
Department for Business Energy and Industrial Strategy,Intellectual Property Office,17/07/2017,Accommodation,People Places & Serv Directorate,HSS Hire Service Group Ltd,14870537,66.94,Not Applicable,
Department for Business Energy and Industrial Strategy,Intellectual Property Office,06/07/2017,Accommodation,People Places & Serv Directorate,SIG TRADING LTD,7033-60024645,93.60,Not Applicable,
Department for Business Energy and Industrial Strategy,Intellectual Property Office,06/07/2017,Accommodation,People Places & Serv Directorate,Kabin Hire Ltd,478880,123.41,Not Applicable,
Department for Business Energy and Industrial Strategy,Intellectual Property Office,19/07/2017,Accommodation,People Places & Serv Directorate,Thomas Waste Management Ltd,177738,288.00,Not Applicable,
Department for Business Energy and Industrial Strategy,Intellectual Property Office,03/07/2017,Accommodation,People Places & Serv Directorate,Thomas Waste Management Ltd,176903,336.00,Not Applicable,
Department for Business Energy and Industrial Strategy,Intellectual Property Office,04/07/2017,Accommodation,People Places & Serv Directorate,Thomas Waste Management Ltd,177116,336.00,Not Applicable,
Department for Business Energy and Industrial Strategy,Intellectual Property Office,04/07/2017,Accommodation,People Places & Serv Directorate,Thomas Waste Management Ltd,177117,336.00,Not Applicable,
Department for Business Energy and Industrial Strategy,Intellectual Property Office,18/07/2017,Accommodation,People Places & Serv Directorate,Thomas Waste Management Ltd,177739,336.00,Not Applicable,
Department for Business Energy and Industrial Strategy,Intellectual Property Office,24/07/2017,Accommodation,People Places & Serv Directorate,Thomas Waste Management Ltd,178017,336.00,Not Applicable,
Department for Business Energy and Industrial Strategy,Intellectual Property Office,24/07/2017,Accommodation,People Places & Serv Directorate,Thomas Waste Management Ltd,178018,336.00,Not Applicable,
Department for Business Energy and Industrial Strategy,Intellectual Property Office,10/07/2017,Accommodation,People Places & Serv Directorate,SIG TRADING LTD,7033-60024909,341.01,Not Applicable,
Department for Business Energy and Industrial Strategy,Intellectual Property Office,18/07/2017,Accommodation,People Places & Serv Directorate,Thomas Waste Management Ltd,177810,378.00,Not Applicable,
Department for Business Energy and Industrial Strategy,Intellectual Property Office,25/07/2017,Accommodation,People Places & Serv Directorate,Total Security Protection Ltd,30354,422.50,Not Applicable,
Department for Business Energy and Industrial Strategy,Intellectual Property Office,12/07/2017,Accommodation,People Places & Serv Directorate,Newey & Eyre,432629905,500.77,Not Applicable,
Department for Business Energy and Industrial Strategy,Intellectual Property Office,24/07/2017,Accommodation,People Places & Serv Directorate,Vinci Construction UK Ltd,17070316,528.24,Not Applicable,
Department for Business Energy and Industrial Strategy,Intellectual Property Office,03/07/2017,Accommodation,People Places & Serv Directorate,Quality Floorcare Ltd,15558,600.00,Not Applicable,
Department for Business Energy and Industrial Strategy,Intellectual Property Office,14/07/2017,Accommodation,People Places & Serv Directorate,SIG TRADING LTD,7033-60024910,629.49,Not Applicable,
Department for Business Energy and Industrial Strategy,Intellectual Property Office,10/07/2017,Accommodation,People Places & Serv Directorate,Thomas Waste Management Ltd,177505,672.00,Not Applicable,
Department for Business Energy and Industrial Strategy,Intellectual Property Office,28/07/2017,Accommodation,People Places & Serv Directorate,Total Security Protection Ltd,29837,1159.01,Not Applicable,
Department for Business Energy and Industrial Strategy,Intellectual Property Office,25/07/2017,Accommodation,People Places & Serv Directorate,Total Security Protection Ltd,30498,1159.01,Not Applicable,
Department for Business Energy and Industrial Strategy,Intellectual Property Office,10/07/2017,Accommodation,People Places & Serv Directorate,SIG TRADING LTD,7033-60024386,1257.00,Not Applicable,
Department for Business Energy and Industrial Strategy,Intellectual Property Office,06/07/2017,Accommodation,People Places & Serv Directorate,Jaguar Building Services Ltd,72793,1267.19,Not Applicable,
Department for Business Energy and Industrial Strategy,Intellectual Property Office,19/07/2017,Accommodation,People Places & Serv Directorate,Quality Floorcare Ltd,15571,2280.00,Not Applicable,
Department for Business Energy and Industrial Strategy,Intellectual Property Office,06/07/2017,Accommodation,People Places & Serv Directorate,UK Shared Business Services Ltd,SBS-14586,2315.90,Not Applicable,
Department for Business Energy and Industrial Strategy,Intellectual Property Office,17/07/2017,Accommodation,People Places & Serv Directorate,UK Shared Business Services Ltd,SBS-14602,2315.90,Not Applicable,
Department for Business Energy and Industrial Strategy,Intellectual Property Office,06/07/2017,Accommodation,People Places & Serv Directorate,Accelerate Cleaning Solutions Ltd,3925,2408.95,Not Applicable,
Department for Business Energy and Industrial Strategy,Intellectual Property Office,04/07/2017,Accommodation,People Places & Serv Directorate,ENGIE Services Limited,1800023620,3360.00,Not Applicable,
Department for Business Energy and Industrial Strategy,Intellectual Property Office,06/07/2017,Accommodation,People Places & Serv Directorate,HFX Ltd,26452,3469.86,Not Applicable,
Department for Business Energy and Industrial Strategy,Intellectual Property Office,06/07/2017,Accommodation,People Places & Serv Directorate,HFX Ltd,26404,5203.90,Not Applicable,
Department for Business Energy and Industrial Strategy,Intellectual Property Office,21/07/2017,Accommodation,People Places & Serv Directorate,Magscapes Ltd,INV-2461,5598.72,Not Applicable,
Department for Business Energy and Industrial Strategy,Intellectual Property Office,25/07/2017,Accommodation,People Places & Serv Directorate,Drake AV Video Ltd,72547,5653.20,Not Applicable,
Department for Business Energy and Industrial Strategy,Intellectual Property Office,27/07/2017,Accommodation,People Places & Serv Directorate,Infineon Technologies,IRNPT 1723,11500.00,Not Applicable,
Department for Business Energy and Industrial Strategy,Intellectual Property Office,06/07/2017,Accommodation,People Places & Serv Directorate,Infineon Technologies,IRNPT1719,11500.00,Not Applicable,
Department for Business Energy and Industrial Strategy,Intellectual Property Office,06/07/2017,Accommodation,People Places & Serv Directorate,Department For Business Innovation & Ski,6.1511E+11,9871.68,Not Applicable,
Department for Business Energy and Industrial Strategy,Intellectual Property Office,10/07/2017,Accommodation,People Places & Serv Directorate,EDF ENERGY,3012588,28740.76,Not Applicable,
Department for Business Energy and Industrial Strategy,Intellectual Property Office,06/07/2017,Accommodation,People Places & Serv Directorate,Department For Business Innovation & Ski,6.1511E+11,45291.98,Not Applicable,
Department for Business Energy and Industrial Strategy,Intellectual Property Office,17/07/2017,Accommodation,People Places & Serv Directorate,D&M Mechanical Engineers Ltd,3003,72000.00,Not Applicable,
Department for Business Energy and Industrial Strategy,Intellectual Property Office,19/07/2017,Accommodation,People Places & Serv Directorate,D&M Mechanical Engineers Ltd,3010,72000.00,Not Applicable,
Department for Business Energy and Industrial Strategy,Intellectual Property Office,06/07/2017,Accommodation,People Places & Serv Directorate,Department For Business Innovation & Ski,6.1511E+11,99721.07,Not Applicable,
Department for Business Energy and Industrial Strategy,Intellectual Property Office,19/07/2017,Accommodation,People Places & Serv Directorate,Corona Energy,12178543CR,-3822.49,Not Applicable,
Department for Business Energy and Industrial Strategy,Intellectual Property Office,19/07/2017,Accommodation,People Places & Serv Directorate,Corona Energy,12179054CR,-3308.38,Not Applicable,
Department for Business Energy and Industrial Strategy,Intellectual Property Office,19/07/2017,Accommodation,People Places & Serv Directorate,Corona Energy,12179543CR,-3071.20,Not Applicable,
Department for Business Energy and Industrial Strategy,Intellectual Property Office,19/07/2017,Accommodation,People Places & Serv Directorate,Corona Energy,12178126CR,-2917.96,Not Applicable,
Department for Business Energy and Industrial Strategy,Intellectual Property Office,19/07/2017,Accommodation,People Places & Serv Directorate,Corona Energy,12180201CR,-1863.80,Not Applicable,
Department for Business Energy and Industrial Strategy,Intellectual Property Office,19/07/2017,Accommodation,People Places & Serv Directorate,Corona Energy,12151510CR,-1390.57,Not Applicable,
Department for Business Energy and Industrial Strategy,Intellectual Property Office,19/07/2017,Accommodation,People Places & Serv Directorate,Corona Energy,12201360,963.62,Not Applicable,
Department for Business Energy and Industrial Strategy,Intellectual Property Office,19/07/2017,Accommodation,People Places & Serv Directorate,Corona Energy,12181524,1291.55,Not Applicable,
Department for Business Energy and Industrial Strategy,Intellectual Property Office,10/07/2017,Accommodation,People Places & Serv Directorate,EDF ENERGY,3016167,1398.59,Not Applicable,
Department for Business Energy and Industrial Strategy,Intellectual Property Office,17/07/2017,Accommodation,People Places & Serv Directorate,Shred It Ltd,9502465553,1526.40,Not Applicable,
Department for Business Energy and Industrial Strategy,Intellectual Property Office,19/07/2017,Accommodation,People Places & Serv Directorate,Corona Energy,12180217,1785.55,Not Applicable,
Department for Business Energy and Industrial Strategy,Intellectual Property Office,19/07/2017,Accommodation,People Places & Serv Directorate,Corona Energy,12178168,2833.60,Not Applicable,
Department for Business Energy and Industrial Strategy,Intellectual Property Office,19/07/2017,Accommodation,People Places & Serv Directorate,Corona Energy,12179560,2873.23,Not Applicable,
Department for Business Energy and Industrial Strategy,Intellectual Property Office,19/07/2017,Accommodation,People Places & Serv Directorate,Corona Energy,12179073,3159.29,Not Applicable,
Department for Business Energy and Industrial Strategy,Intellectual Property Office,19/07/2017,Accommodation,People Places & Serv Directorate,Corona Energy,12178563,3604.61,Not Applicable,
Department for Business Energy and Industrial Strategy,Intellectual Property Office,06/07/2017,Accommodation,People Places & Serv Directorate,Department For Business Innovation & Ski,6.1511E+11,7410.00,Not Applicable,
Department for Business Energy and Industrial Strategy,Intellectual Property Office,06/07/2017,Accommodation,People Places & Serv Directorate,Department For Business Innovation & Ski,6.1511E+11,7604.99,Not Applicable,
Department for Business Energy and Industrial Strategy,Intellectual Property Office,12/07/2017,Accommodation,People Places & Serv Directorate,Caerphilly County Borough Council,510317691-APR17,33433.00,Not Applicable,
Department for Business Energy and Industrial Strategy,Intellectual Property Office,27/07/2017,Accommodation,People Places & Serv Directorate,London Borough of Tower Hamlets,65958270-APR2017,399200.00,Not Applicable,
Department for Business Energy and Industrial Strategy,Intellectual Property Office,24/07/2017,Supporting UK Business,International Policy Directorate,FOREIGN & COMMONWEALTH OFFICE,1097102,-0.9,Not Applicable,
Department for Business Energy and Industrial Strategy,Intellectual Property Office,05/07/2017,Travel & Subsistence,International Policy Directorate,Personal expenses,UK000001784,7,Not Applicable,
Department for Business Energy and Industrial Strategy,Intellectual Property Office,27/07/2017,Travel & Subsistence,International Policy Directorate,Personal expenses,UK0000001927,14.8,Not Applicable,
Department for Business Energy and Industrial Strategy,Intellectual Property Office,21/07/2017,Travel & Subsistence,International Policy Directorate,Personal expenses,UK000001922,17.3,Not Applicable,
Department for Business Energy and Industrial Strategy,Intellectual Property Office,18/07/2017,Travel & Subsistence,International Policy Directorate,Personal expenses,UK000001896,18.2,Not Applicable,
Department for Business Energy and Industrial Strategy,Intellectual Property Office,18/07/2017,Travel & Subsistence,International Policy Directorate,Personal expenses,UK0000001831,24.95,Not Applicable,
Department for Business Energy and Industrial Strategy,Intellectual Property Office,28/07/2017,Travel & Subsistence,International Policy Directorate,Personal expenses,UK000001945,30,Not Applicable,
Department for Business Energy and Industrial Strategy,Intellectual Property Office,05/07/2017,Travel & Subsistence,International Policy Directorate,Personal expenses,UK000001799,30.04,Not Applicable,
Department for Business Energy and Industrial Strategy,Intellectual Property Office,18/07/2017,Travel & Subsistence,International Policy Directorate,Personal expenses,UK000001832,34.29,Not Applicable,
Department for Business Energy and Industrial Strategy,Intellectual Property Office,19/07/2017,Travel & Subsistence,International Policy Directorate,Leanne Davies,LD030717,37,Not Applicable,
Department for Business Energy and Industrial Strategy,Intellectual Property Office,05/07/2017,Travel & Subsistence,International Policy Directorate,Veezu Ltd T/A Dragon Taxis (Newport),3206,39.12,Not Applicable,
Department for Business Energy and Industrial Strategy,Intellectual Property Office,18/07/2017,Travel & Subsistence,International Policy Directorate,Personal expenses,OS000000405,42.97,Not Applicable,
Department for Business Energy and Industrial Strategy,Intellectual Property Office,12/07/2017,Travel & Subsistence,International Policy Directorate,Zenith,17528,52.9,Not Applicable,
Department for Business Energy and Industrial Strategy,Intellectual Property Office,21/07/2017,Travel & Subsistence,International Policy Directorate,Zenith,18483,58.49,Not Applicable,
Department for Business Energy and Industrial Strategy,Intellectual Property Office,11/07/2017,Travel & Subsistence,International Policy Directorate,Personal expenses,UK000001843,63.5,Not Applicable,
Department for Business Energy and Industrial Strategy,Intellectual Property Office,18/07/2017,Travel & Subsistence,International Policy Directorate,Personal expenses,OS000000400,157.79,Not Applicable,
Department for Business Energy and Industrial Strategy,Intellectual Property Office,18/07/2017,Travel & Subsistence,International Policy Directorate,Personal expenses,OS000000393,165.84,Not Applicable,
Department for Business Energy and Industrial Strategy,Intellectual Property Office,12/07/2017,Travel & Subsistence,International Policy Directorate,Personal expenses,OS000000395,178.9,Not Applicable,
Department for Business Energy and Industrial Strategy,Intellectual Property Office,18/07/2017,Travel & Subsistence,International Policy Directorate,Personal expenses,OS000000409,268.71,Not Applicable,
Department for Business Energy and Industrial Strategy,Intellectual Property Office,27/07/2017,Travel & Subsistence,International Policy Directorate,Personal expenses,OS000000404,304.7,Not Applicable,
Department for Business Energy and Industrial Strategy,Intellectual Property Office,27/07/2017,Travel & Subsistence,International Policy Directorate,Personal expenses,OS000000416,327.13,Not Applicable,
Department for Business Energy and Industrial Strategy,Intellectual Property Office,20/07/2017,Travel & Subsistence,International Policy Directorate,Personal expenses,OS000000402,336.39,Not Applicable,
Department for Business Energy and Industrial Strategy,Intellectual Property Office,05/07/2017,Travel & Subsistence,International Policy Directorate,Personal expenses,OS000000364,418.63,Not Applicable,
Department for Business Energy and Industrial Strategy,Intellectual Property Office,18/07/2017,Travel & Subsistence,International Policy Directorate,Personal expenses,OS000000392,641.51,Not Applicable,
Department for Business Energy and Industrial Strategy,Intellectual Property Office,13/07/2017,Staff Costs,International Policy Directorate,Language Services Direct Ltd,18358,910.75,Not Applicable,
Department for Business Energy and Industrial Strategy,Intellectual Property Office,18/07/2017,Travel & Subsistence,International Policy Directorate,Personal expenses,OS000000401,1034.63,Not Applicable,
Department for Business Energy and Industrial Strategy,Intellectual Property Office,24/07/2017,Supporting UK Business,International Policy Directorate,FOREIGN & COMMONWEALTH OFFICE,1097045,11205.57,Not Applicable,
Department for Business Energy and Industrial Strategy,Intellectual Property Office,03/07/2017,Supporting UK Business,International Policy Directorate,FOREIGN & COMMONWEALTH OFFICE,1096762,-224.11,Not Applicable,
Department for Business Energy and Industrial Strategy,Intellectual Property Office,13/07/2017,Miscellaneous Expenses General,International Policy Directorate,Hotel Espana Barcelona,ROOM 9009 210517,1673.85,Not Applicable,
Department for Business Energy and Industrial Strategy,Intellectual Property Office,03/07/2017,Supporting UK Business,International Policy Directorate,FOREIGN & COMMONWEALTH OFFICE,1096640,24349.91,Not Applicable,
Department for Business Energy and Industrial Strategy,Intellectual Property Office,05/07/2017,Travel & Subsistence,Patent Directorate,Zenith,16639,70.69,Not Applicable,
Department for Business Energy and Industrial Strategy,Intellectual Property Office,12/07/2017,Travel & Subsistence,Patent Directorate,Zenith,17521,83.63,Not Applicable,
Department for Business Energy and Industrial Strategy,Intellectual Property Office,24/07/2017,Pay Costs,Patent Directorate,Brook Street (UK) Ltd,30535874,-424.08,Not Applicable,
Department for Business Energy and Industrial Strategy,Intellectual Property Office,28/07/2017,Pay Costs,Patent Directorate,Brook Street (UK) Ltd,30537256,242.28,Not Applicable,
Department for Business Energy and Industrial Strategy,Intellectual Property Office,18/07/2017,Pay Costs,Patent Directorate,Brook Street (UK) Ltd,30513339,320.5,Not Applicable,
Department for Business Energy and Industrial Strategy,Intellectual Property Office,18/07/2017,Pay Costs,Patent Directorate,Brook Street (UK) Ltd,30513339,327.78,Not Applicable,
Department for Business Energy and Industrial Strategy,Intellectual Property Office,18/07/2017,Pay Costs,Patent Directorate,Brook Street (UK) Ltd,30513339,393.34,Not Applicable,
Department for Business Energy and Industrial Strategy,Intellectual Property Office,24/07/2017,Pay Costs,Patent Directorate,Brook Street (UK) Ltd,30525227,437.04,Not Applicable,
Department for Business Energy and Industrial Strategy,Intellectual Property Office,24/07/2017,Pay Costs,Patent Directorate,Brook Street (UK) Ltd,30525227,437.04,Not Applicable,
Department for Business Energy and Industrial Strategy,Intellectual Property Office,24/07/2017,Pay Costs,Patent Directorate,Brook Street (UK) Ltd,30525227,473.46,Not Applicable,
Department for Business Energy and Industrial Strategy,Intellectual Property Office,28/07/2017,Pay Costs,Patent Directorate,Brook Street (UK) Ltd,30537256,477.96,Not Applicable,
Department for Business Energy and Industrial Strategy,Intellectual Property Office,10/07/2017,Pay Costs,Patent Directorate,Brook Street (UK) Ltd,30499749,484.56,Not Applicable,
Department for Business Energy and Industrial Strategy,Intellectual Property Office,18/07/2017,Pay Costs,Patent Directorate,Brook Street (UK) Ltd,30513339,484.56,Not Applicable,
Department for Business Energy and Industrial Strategy,Intellectual Property Office,24/07/2017,Pay Costs,Patent Directorate,Brook Street (UK) Ltd,30525227,484.56,Not Applicable,
Department for Business Energy and Industrial Strategy,Intellectual Property Office,10/07/2017,Pay Costs,Patent Directorate,Brook Street (UK) Ltd,30499749,523.03,Not Applicable,
Department for Business Energy and Industrial Strategy,Intellectual Property Office,18/07/2017,Pay Costs,Patent Directorate,Brook Street (UK) Ltd,30513339,523.03,Not Applicable,
Department for Business Energy and Industrial Strategy,Intellectual Property Office,24/07/2017,Pay Costs,Patent Directorate,Brook Street (UK) Ltd,30525227,523.03,Not Applicable,
Department for Business Energy and Industrial Strategy,Intellectual Property Office,28/07/2017,Pay Costs,Patent Directorate,Brook Street (UK) Ltd,30537256,523.03,Not Applicable,
Department for Business Energy and Industrial Strategy,Intellectual Property Office,28/07/2017,Pay Costs,Patent Directorate,Brook Street (UK) Ltd,30537256,534.58,Not Applicable,
Department for Business Energy and Industrial Strategy,Intellectual Property Office,10/07/2017,Pay Costs,Patent Directorate,Brook Street (UK) Ltd,30499749,539.02,Not Applicable,
Department for Business Energy and Industrial Strategy,Intellectual Property Office,24/07/2017,Pay Costs,Patent Directorate,Brook Street (UK) Ltd,30525227,539.02,Not Applicable,
Department for Business Energy and Industrial Strategy,Intellectual Property Office,28/07/2017,Pay Costs,Patent Directorate,Brook Street (UK) Ltd,30537256,539.02,Not Applicable,
Department for Business Energy and Industrial Strategy,Intellectual Property Office,28/07/2017,Pay Costs,Patent Directorate,Brook Street (UK) Ltd,30537256,539.02,Not Applicable,
Department for Business Energy and Industrial Strategy,Intellectual Property Office,28/07/2017,Pay Costs,Patent Directorate,Brook Street (UK) Ltd,30537256,539.02,Not Applicable,
Department for Business Energy and Industrial Strategy,Intellectual Property Office,10/07/2017,Pay Costs,Patent Directorate,Brook Street (UK) Ltd,30499749,546.3,Not Applicable,
Department for Business Energy and Industrial Strategy,Intellectual Property Office,18/07/2017,Pay Costs,Patent Directorate,Brook Street (UK) Ltd,30513339,546.3,Not Applicable,
Department for Business Energy and Industrial Strategy,Intellectual Property Office,28/07/2017,Pay Costs,Patent Directorate,Brook Street (UK) Ltd,30537256,551.96,Not Applicable,
Department for Business Energy and Industrial Strategy,Intellectual Property Office,10/07/2017,Pay Costs,Patent Directorate,Brook Street (UK) Ltd,30499749,560.87,Not Applicable,
Department for Business Energy and Industrial Strategy,Intellectual Property Office,18/07/2017,Pay Costs,Patent Directorate,Brook Street (UK) Ltd,30513339,560.87,Not Applicable,
Department for Business Energy and Industrial Strategy,Intellectual Property Office,24/07/2017,Pay Costs,Patent Directorate,Brook Street (UK) Ltd,30525227,781.37,Not Applicable,
Department for Business Energy and Industrial Strategy,Intellectual Property Office,10/07/2017,Pay Costs,Patent Directorate,Brook Street (UK) Ltd,30499749,888.56,Not Applicable,
Department for Business Energy and Industrial Strategy,Intellectual Property Office,18/07/2017,Pay Costs,Patent Directorate,Brook Street (UK) Ltd,30513339,972.72,Not Applicable,
Department for Business Energy and Industrial Strategy,Intellectual Property Office,05/07/2017,Travel & Subsistence,Patent Directorate,Zenith,14044,63.61,Not Applicable,
Department for Business Energy and Industrial Strategy,Intellectual Property Office,05/07/2017,Travel & Subsistence,Patent Directorate,Zenith,16028,67.79,Not Applicable,
Department for Business Energy and Industrial Strategy,Intellectual Property Office,18/07/2017,Travel & Subsistence,Patent Directorate,Personal expenses,UK000001850,5,Not Applicable,
Department for Business Energy and Industrial Strategy,Intellectual Property Office,05/07/2017,Travel & Subsistence,Patent Directorate,Personal expenses,OS000000386,127.42,Not Applicable,
Department for Business Energy and Industrial Strategy,Intellectual Property Office,18/07/2017,Travel & Subsistence,Patent Directorate,Personal expenses,OS000000398,174.77,Not Applicable,
Department for Business Energy and Industrial Strategy,Intellectual Property Office,05/07/2017,Travel & Subsistence,Patent Directorate,Personal expenses,OS000000377,174.88,Not Applicable,
Department for Business Energy and Industrial Strategy,Intellectual Property Office,26/07/2017,Pay Costs,Patent Directorate,Brook Street (UK) Ltd,30322596,-537.24,Not Applicable,
Department for Business Energy and Industrial Strategy,Intellectual Property Office,26/07/2017,Pay Costs,Patent Directorate,Brook Street (UK) Ltd,30322597,-537.24,Not Applicable,
Department for Business Energy and Industrial Strategy,Intellectual Property Office,05/07/2017,Travel & Subsistence,Patent Directorate,Veezu Ltd T/A Dragon Taxis (Newport),3206,15.6,Not Applicable,
Department for Business Energy and Industrial Strategy,Intellectual Property Office,24/07/2017,Pay Costs,Patent Directorate,Brook Street (UK) Ltd,30525227,241.19,Not Applicable,
Department for Business Energy and Industrial Strategy,Intellectual Property Office,10/07/2017,Pay Costs,Patent Directorate,Brook Street (UK) Ltd,30499749,244.44,Not Applicable,
Department for Business Energy and Industrial Strategy,Intellectual Property Office,28/07/2017,Pay Costs,Patent Directorate,Brook Street (UK) Ltd,30537256,318.06,Not Applicable,
Department for Business Energy and Industrial Strategy,Intellectual Property Office,28/07/2017,Pay Costs,Patent Directorate,Brook Street (UK) Ltd,30537256,358.51,Not Applicable,
Department for Business Energy and Industrial Strategy,Intellectual Property Office,18/07/2017,Pay Costs,Patent Directorate,Brook Street (UK) Ltd,30513339,407.4,Not Applicable,
Department for Business Energy and Industrial Strategy,Intellectual Property Office,28/07/2017,Pay Costs,Patent Directorate,Brook Street (UK) Ltd,30537256,480.73,Not Applicable,
Department for Business Energy and Industrial Strategy,Intellectual Property Office,10/07/2017,Pay Costs,Patent Directorate,Brook Street (UK) Ltd,30499749,512.1,Not Applicable,
Department for Business Energy and Industrial Strategy,Intellectual Property Office,10/07/2017,Pay Costs,Patent Directorate,Brook Street (UK) Ltd,30499749,521.26,Not Applicable,
Department for Business Energy and Industrial Strategy,Intellectual Property Office,18/07/2017,Pay Costs,Patent Directorate,Brook Street (UK) Ltd,30513339,523.03,Not Applicable,
Department for Business Energy and Industrial Strategy,Intellectual Property Office,24/07/2017,Pay Costs,Patent Directorate,Brook Street (UK) Ltd,30525227,523.03,Not Applicable,
Department for Business Energy and Industrial Strategy,Intellectual Property Office,28/07/2017,Pay Costs,Patent Directorate,Brook Street (UK) Ltd,30537256,523.03,Not Applicable,
Department for Business Energy and Industrial Strategy,Intellectual Property Office,28/07/2017,Pay Costs,Patent Directorate,Brook Street (UK) Ltd,30537256,523.03,Not Applicable,
Department for Business Energy and Industrial Strategy,Intellectual Property Office,28/07/2017,Pay Costs,Patent Directorate,Brook Street (UK) Ltd,30537256,534.58,Not Applicable,
Department for Business Energy and Industrial Strategy,Intellectual Property Office,10/07/2017,Pay Costs,Patent Directorate,Brook Street (UK) Ltd,30499749,539.02,Not Applicable,
Department for Business Energy and Industrial Strategy,Intellectual Property Office,18/07/2017,Pay Costs,Patent Directorate,Brook Street (UK) Ltd,30513339,539.02,Not Applicable,
Department for Business Energy and Industrial Strategy,Intellectual Property Office,18/07/2017,Pay Costs,Patent Directorate,Brook Street (UK) Ltd,30513339,539.02,Not Applicable,
Department for Business Energy and Industrial Strategy,Intellectual Property Office,24/07/2017,Pay Costs,Patent Directorate,Brook Street (UK) Ltd,30525227,539.02,Not Applicable,
Department for Business Energy and Industrial Strategy,Intellectual Property Office,28/07/2017,Pay Costs,Patent Directorate,Brook Street (UK) Ltd,30537256,539.02,Not Applicable,
Department for Business Energy and Industrial Strategy,Intellectual Property Office,26/07/2017,Pay Costs,Patent Directorate,Brook Street (UK) Ltd,30322822,595.4,Not Applicable,
Department for Business Energy and Industrial Strategy,Intellectual Property Office,26/07/2017,Pay Costs,Patent Directorate,Brook Street (UK) Ltd,30322823,595.4,Not Applicable,
Department for Business Energy and Industrial Strategy,Intellectual Property Office,24/07/2017,Pay Costs,Patent Directorate,Brook Street (UK) Ltd,30525227,602.95,Not Applicable,
Department for Business Energy and Industrial Strategy,Intellectual Property Office,18/07/2017,Pay Costs,Patent Directorate,Brook Street (UK) Ltd,30513339,603.01,Not Applicable,
Department for Business Energy and Industrial Strategy,Intellectual Property Office,18/07/2017,Pay Costs,Patent Directorate,Brook Street (UK) Ltd,30513339,603.01,Not Applicable,
Department for Business Energy and Industrial Strategy,Intellectual Property Office,28/07/2017,Pay Costs,Patent Directorate,Brook Street (UK) Ltd,30537256,696.06,Not Applicable,
Department for Business Energy and Industrial Strategy,Intellectual Property Office,10/07/2017,Pay Costs,Patent Directorate,Brook Street (UK) Ltd,30499749,723.34,Not Applicable,
Department for Business Energy and Industrial Strategy,Intellectual Property Office,24/07/2017,Pay Costs,Patent Directorate,Brook Street (UK) Ltd,30525227,788.12,Not Applicable,
Department for Business Energy and Industrial Strategy,Intellectual Property Office,24/07/2017,Pay Costs,Patent Directorate,Brook Street (UK) Ltd,30525227,1035.13,Not Applicable,
Department for Business Energy and Industrial Strategy,Intellectual Property Office,10/07/2017,Pay Costs,Patent Directorate,Brook Street (UK) Ltd,30499749,1046.76,Not Applicable,
Department for Business Energy and Industrial Strategy,Intellectual Property Office,18/07/2017,Pay Costs,Patent Directorate,Brook Street (UK) Ltd,30513339,1051.12,Not Applicable,
Department for Business Energy and Industrial Strategy,Intellectual Property Office,24/07/2017,Pay Costs,Patent Directorate,Brook Street (UK) Ltd,30525227,1051.12,Not Applicable,
Department for Business Energy and Industrial Strategy,Intellectual Property Office,28/07/2017,Pay Costs,Patent Directorate,Brook Street (UK) Ltd,30537256,1051.12,Not Applicable,
Department for Business Energy and Industrial Strategy,Intellectual Property Office,18/07/2017,Pay Costs,Patent Directorate,Brook Street (UK) Ltd,30513339,1109.06,Not Applicable,
Department for Business Energy and Industrial Strategy,Intellectual Property Office,24/07/2017,Pay Costs,Patent Directorate,Brook Street (UK) Ltd,30525227,1125.98,Not Applicable,
Department for Business Energy and Industrial Strategy,Intellectual Property Office,18/07/2017,Pay Costs,Patent Directorate,Brook Street (UK) Ltd,30513339,1449.16,Not Applicable,
Department for Business Energy and Industrial Strategy,Intellectual Property Office,24/07/2017,Pay Costs,Patent Directorate,Brook Street (UK) Ltd,30525227,1558.85,Not Applicable,
Department for Business Energy and Industrial Strategy,Intellectual Property Office,10/07/2017,Pay Costs,Patent Directorate,Brook Street (UK) Ltd,30499749,1585.08,Not Applicable,
Department for Business Energy and Industrial Strategy,Intellectual Property Office,28/07/2017,Pay Costs,Patent Directorate,Brook Street (UK) Ltd,30537256,1969.7,Not Applicable,
Department for Business Energy and Industrial Strategy,Intellectual Property Office,06/07/2017,Travel & Subsistence,Patent Directorate,Personal expenses,UK000001805,62.85,Not Applicable,
Department for Business Energy and Industrial Strategy,Intellectual Property Office,21/07/2017,Travel & Subsistence,Patent Directorate,Personal expenses,UK000001905,3.89,Not Applicable,
Department for Business Energy and Industrial Strategy,Intellectual Property Office,18/07/2017,Travel & Subsistence,Patent Directorate,Personal expenses,UK0000001823,8,Not Applicable,
Department for Business Energy and Industrial Strategy,Intellectual Property Office,27/07/2017,Travel & Subsistence,Patent Directorate,Zenith,19360,10.2,Not Applicable,
Department for Business Energy and Industrial Strategy,Intellectual Property Office,24/07/2017,Travel & Subsistence,Patent Directorate,Zenith,19361,10.2,Not Applicable,
Department for Business Energy and Industrial Strategy,Intellectual Property Office,28/07/2017,Travel & Subsistence,Patent Directorate,Personal expenses,UK000001943,10,Not Applicable,
Department for Business Energy and Industrial Strategy,Intellectual Property Office,10/07/2017,Travel & Subsistence,Patent Directorate,Personal expenses,UK000001703,10.16,Not Applicable,
Department for Business Energy and Industrial Strategy,Intellectual Property Office,28/07/2017,Travel & Subsistence,Patent Directorate,Personal expenses,UK000001944,36.6,Not Applicable,
Department for Business Energy and Industrial Strategy,Intellectual Property Office,05/07/2017,Travel & Subsistence,Patent Directorate,Personal expenses,UK000001807,42.26,Not Applicable,
Department for Business Energy and Industrial Strategy,Intellectual Property Office,24/07/2017,Travel & Subsistence,Patent Directorate,Zenith,17962,54.02,Not Applicable,
Department for Business Energy and Industrial Strategy,Intellectual Property Office,05/07/2017,Travel & Subsistence,Patent Directorate,Zenith,16640,59.81,Not Applicable,
Department for Business Energy and Industrial Strategy,Intellectual Property Office,11/07/2017,Travel & Subsistence,Patent Directorate,Zenith,16641,59.81,Not Applicable,
Department for Business Energy and Industrial Strategy,Intellectual Property Office,05/07/2017,Travel & Subsistence,Patent Directorate,Zenith,16642,59.81,Not Applicable,
Department for Business Energy and Industrial Strategy,Intellectual Property Office,24/07/2017,Travel & Subsistence,Patent Directorate,Zenith,19239,59.81,Not Applicable,
Department for Business Energy and Industrial Strategy,Intellectual Property Office,24/07/2017,Travel & Subsistence,Patent Directorate,Zenith,18704,64.22,Not Applicable,
Department for Business Energy and Industrial Strategy,Intellectual Property Office,25/07/2017,Travel & Subsistence,Patent Directorate,Zenith,18830,75.55,Not Applicable,
Department for Business Energy and Industrial Strategy,Intellectual Property Office,18/07/2017,Travel & Subsistence,Patent Directorate,Personal expenses,UK000001845,98.23,Not Applicable,
Department for Business Energy and Industrial Strategy,Intellectual Property Office,19/07/2017,Travel & Subsistence,Patent Directorate,Zenith,17960,119.62,Not Applicable,
Department for Business Energy and Industrial Strategy,Intellectual Property Office,21/07/2017,Travel & Subsistence,Patent Directorate,Personal expenses,UK000001919,101.32,Not Applicable,
Department for Business Energy and Industrial Strategy,Intellectual Property Office,06/07/2017,Staff Costs,Patent Directorate,Welsh Assembly Government,1800069835,600,Not Applicable,
Department for Business Energy and Industrial Strategy,Intellectual Property Office,18/07/2017,Legal & Hearings,Patent Directorate,Government Legal Department,442915,11.16,Not Applicable,
Department for Business Energy and Industrial Strategy,Intellectual Property Office,12/07/2017,Incorporations - Standard,Patent Directorate,Ranvir Singh Sethi,1016026350,30,Not Applicable,
Department for Business Energy and Industrial Strategy,Intellectual Property Office,07/07/2017,Information Technology,Patent Directorate,STN,9340313791,111.55,Not Applicable,
Department for Business Energy and Industrial Strategy,Intellectual Property Office,12/07/2017,Incorporations - Standard,Patent Directorate,Dorillien Lache,K867192,130,Not Applicable,
Department for Business Energy and Industrial Strategy,Intellectual Property Office,12/07/2017,Incorporations - Standard,Patent Directorate,Emma Gardiner,J792708,150,Not Applicable,
Department for Business Energy and Industrial Strategy,Intellectual Property Office,20/07/2017,Incorporations - Standard,Patent Directorate,David Lowe,J793533,150,Not Applicable,
Department for Business Energy and Industrial Strategy,Intellectual Property Office,20/07/2017,Incorporations - Standard,Patent Directorate,James Gerard Hopkins,1017016519,150,Not Applicable,
Department for Business Energy and Industrial Strategy,Intellectual Property Office,21/07/2017,Incorporations - Standard,Patent Directorate,Adrian Lewis,J790036,150,Not Applicable,
Department for Business Energy and Industrial Strategy,Intellectual Property Office,04/07/2017,Incorporations - Standard,Patent Directorate,Russell Balcombe Allen,1017015651,160,Not Applicable,
Department for Business Energy and Industrial Strategy,Intellectual Property Office,03/07/2017,Incorporations - Standard,Patent Directorate,Darrell Lee Mann,1017008831,210,Not Applicable,
Department for Business Energy and Industrial Strategy,Intellectual Property Office,12/07/2017,Incorporations - Standard,Patent Directorate,David Edward Green,J789040,210,Not Applicable,
Department for Business Energy and Industrial Strategy,Intellectual Property Office,24/07/2017,Incorporations - Standard,Patent Directorate,Adedayo Olamide Sanni,J797232,250,Not Applicable,
Department for Business Energy and Industrial Strategy,Intellectual Property Office,06/07/2017,Office Supplies,Patent Directorate,British Library,139787749,352.53,Not Applicable,
Department for Business Energy and Industrial Strategy,Intellectual Property Office,18/07/2017,Legal & Hearings,Patent Directorate,Marten Walsh Cherer Ltd,95615,1387.85,Not Applicable,
Department for Business Energy and Industrial Strategy,Intellectual Property Office,12/07/2017,Legal & Hearings,Patent Directorate,Government Legal Department,442828,1980.44,Not Applicable,
Department for Business Energy and Industrial Strategy,Intellectual Property Office,06/07/2017,Office Supplies,Patent Directorate,British Library,139787762,2482.51,Not Applicable,
Department for Business Energy and Industrial Strategy,Intellectual Property Office,07/07/2017,Information Technology,Patent Directorate,STN,9340313348,13601.18,Not Applicable,
Department for Business Energy and Industrial Strategy,Intellectual Property Office,19/07/2017,Information Technology,Patent Directorate,Beijing Zhong Xian Dian Zi Tech,20170613008,21041.15,Not Applicable,
Department for Business Energy and Industrial Strategy,Intellectual Property Office,10/07/2017,Information Technology,Patent Directorate,Clarivate Analytics (UK) Limited,836382903,146908.5,Not Applicable,
Department for Business Energy and Industrial Strategy,Intellectual Property Office,18/07/2017,Information Technology,Patent Directorate,European Patent Office,40270455,131593.06,Not Applicable,
Department for Business Energy and Industrial Strategy,Intellectual Property Office,05/07/2017,Travel & Subsistence,Projects,Veezu Ltd T/A Dragon Taxis (Newport),3206,8.22,Not Applicable,
Department for Business Energy and Industrial Strategy,Intellectual Property Office,25/07/2017,Travel & Subsistence,Projects,Personal expenses,OS000000394,21.88,Not Applicable,
Department for Business Energy and Industrial Strategy,Intellectual Property Office,18/07/2017,Travel & Subsistence,Projects,Personal expenses,OS000000375,34.31,Not Applicable,
Department for Business Energy and Industrial Strategy,Intellectual Property Office,25/07/2017,Travel & Subsistence,Projects,Zenith,19600,52.9,Not Applicable,
Department for Business Energy and Industrial Strategy,Intellectual Property Office,21/07/2017,Travel & Subsistence,Projects,Zenith,17959,58.49,Not Applicable,
Department for Business Energy and Industrial Strategy,Intellectual Property Office,18/07/2017,Travel & Subsistence,Projects,Personal expenses,UK000001875,59,Not Applicable,
Department for Business Energy and Industrial Strategy,Intellectual Property Office,27/07/2017,Travel & Subsistence,Projects,Personal expenses,OS000000414,73.07,Not Applicable,
Department for Business Energy and Industrial Strategy,Intellectual Property Office,18/07/2017,Travel & Subsistence,Projects,Personal expenses,OS000000410,418.29,Not Applicable,
Department for Business Energy and Industrial Strategy,Intellectual Property Office,19/07/2017,Staff Costs,Projects,RADA Enterprise,17637,600,Not Applicable,
Department for Business Energy and Industrial Strategy,Intellectual Property Office,18/07/2017,Travel & Subsistence,Projects,Personal expenses,UK000001903,707.43,Not Applicable,
Department for Business Energy and Industrial Strategy,Intellectual Property Office,12/07/2017,Miscellaneous Expenses General,Projects,Robin Jacob,UPC-11JUL17,1046.73,Not Applicable,
Department for Business Energy and Industrial Strategy,Intellectual Property Office,06/07/2017,Information Technology,Projects,Probrand Ltd,OP-I572277,3730.99,Not Applicable,
Department for Business Energy and Industrial Strategy,Intellectual Property Office,06/07/2017,Information Technology,Projects,Probrand Ltd,OP-I572020,10453.51,Not Applicable,
Department for Business Energy and Industrial Strategy,Intellectual Property Office,13/07/2017,Information Technology,Projects,Silver Marlin Associates Ltd,IPO2003,17820,Not Applicable,
Department for Business Energy and Industrial Strategy,Intellectual Property Office,11/07/2017,Information Technology,Projects,SANDHILL CONSULTANTS LTD,IN4059040,6840,Not Applicable,
Department for Business Energy and Industrial Strategy,Intellectual Property Office,07/07/2017,Information Technology,Projects,Experian Ltd,CEX000613598,-137700,Not Applicable,
Department for Business Energy and Industrial Strategy,Intellectual Property Office,07/07/2017,Information Technology,Projects,Experian Ltd,HEX67000612855,137700,Not Applicable,
Department for Business Energy and Industrial Strategy,Intellectual Property Office,04/07/2017,Travel & Subsistence,Projects,Personal expenses,UK000001790,25.35,Not Applicable,
Department for Business Energy and Industrial Strategy,Intellectual Property Office,07/07/2017,Information Technology,Projects,Top Level Computing,4964,9230.16,Not Applicable,
Department for Business Energy and Industrial Strategy,Intellectual Property Office,25/07/2017,Information Technology,Projects,Top Level Computing,5020,9230.16,Not Applicable,
Department for Business Energy and Industrial Strategy,Intellectual Property Office,07/07/2017,Information Technology,Projects,Top Level Computing,5006,64959.58,Not Applicable,
Department for Business Energy and Industrial Strategy,Intellectual Property Office,28/07/2017,Information Technology,Projects,Agile Solutions GB Ltd,INV-3035,5400,Not Applicable,
Department for Business Energy and Industrial Strategy,Intellectual Property Office,05/07/2017,Travel & Subsistence,Trade Mark Directorate,Veezu Ltd T/A Dragon Taxis (Newport),3206,7.8,Not Applicable,
Department for Business Energy and Industrial Strategy,Intellectual Property Office,05/07/2017,Travel & Subsistence,Trade Mark Directorate,Veezu Ltd T/A Dragon Taxis (Newport),3206,7.8,Not Applicable,
Department for Business Energy and Industrial Strategy,Intellectual Property Office,18/07/2017,Travel & Subsistence,Trade Mark Directorate,Personal expenses,UK000001852,13,Not Applicable,
Department for Business Energy and Industrial Strategy,Intellectual Property Office,05/07/2017,Travel & Subsistence,Trade Mark Directorate,Zenith,16637,58.49,Not Applicable,
Department for Business Energy and Industrial Strategy,Intellectual Property Office,21/07/2017,Travel & Subsistence,Trade Mark Directorate,Personal expenses,UK000001882,4.19,Not Applicable,
Department for Business Energy and Industrial Strategy,Intellectual Property Office,18/07/2017,Travel & Subsistence,Trade Mark Directorate,Personal expenses,UK000001849,7,Not Applicable,
Department for Business Energy and Industrial Strategy,Intellectual Property Office,05/07/2017,Travel & Subsistence,Trade Mark Directorate,Veezu Ltd T/A Dragon Taxis (Newport),3206,7.8,Not Applicable,
Department for Business Energy and Industrial Strategy,Intellectual Property Office,18/07/2017,Travel & Subsistence,Trade Mark Directorate,Personal expenses,UK000001898,9.4,Not Applicable,
Department for Business Energy and Industrial Strategy,Intellectual Property Office,18/07/2017,Travel & Subsistence,Trade Mark Directorate,Personal expenses,UK000001874,20.98,Not Applicable,
Department for Business Energy and Industrial Strategy,Intellectual Property Office,18/07/2017,Travel & Subsistence,Trade Mark Directorate,Personal expenses,UK000001864,25.96,Not Applicable,
Department for Business Energy and Industrial Strategy,Intellectual Property Office,10/07/2017,Travel & Subsistence,Trade Mark Directorate,Personal expenses,OS000000385,99.68,Not Applicable,
Department for Business Energy and Industrial Strategy,Intellectual Property Office,20/07/2017,Travel & Subsistence,Trade Mark Directorate,Personal expenses,OS000000403,132.02,Not Applicable,
Department for Business Energy and Industrial Strategy,Intellectual Property Office,04/07/2017,Travel & Subsistence,Trade Mark Directorate,Personal expenses,OS000000382,175.97,Not Applicable,
Department for Business Energy and Industrial Strategy,Intellectual Property Office,19/07/2017,Miscellaneous Expenses General,Trade Mark Directorate,Wales Quality Centre Ltd,10907,1194,Not Applicable,
Department for Business Energy and Industrial Strategy,Intellectual Property Office,10/07/2017,Pay Costs,Trade Mark Directorate,Brook Street (UK) Ltd,30499749,251.59,Not Applicable,
Department for Business Energy and Industrial Strategy,Intellectual Property Office,17/07/2017,Legal & Hearings,Trade Mark Directorate,Marten Walsh Cherer Ltd,95567,559.81,Not Applicable,
Department for Business Energy and Industrial Strategy,Intellectual Property Office,18/07/2017,Pay Costs,Trade Mark Directorate,Brook Street (UK) Ltd,30513339,597.62,Not Applicable,
Department for Business Energy and Industrial Strategy,Intellectual Property Office,24/07/2017,Pay Costs,Trade Mark Directorate,Brook Street (UK) Ltd,30525227,597.62,Not Applicable,
Department for Business Energy and Industrial Strategy,Intellectual Property Office,18/07/2017,Travel & Subsistence,Trade Mark Directorate,Personal expenses,OS000000397,535.03,Not Applicable,
Department for Business Energy and Industrial Strategy,Intellectual Property Office,17/07/2017,Legal & Hearings,Trade Mark Directorate,Marten Walsh Cherer Ltd,95568,899.39,Not Applicable,
Department for Business Energy and Industrial Strategy,Intellectual Property Office,10/07/2017,Travel & Subsistence,Trade Mark Directorate,Personal expenses,UK000001821,7,Not Applicable,
Department for Business Energy and Industrial Strategy,Intellectual Property Office,28/07/2017,Travel & Subsistence,Trade Mark Directorate,Personal expenses,UK000001954,20,Not Applicable,
Department for Business Energy and Industrial Strategy,Intellectual Property Office,05/07/2017,Travel & Subsistence,Trade Mark Directorate,Veezu Ltd T/A Dragon Taxis (Newport),3206,307.02,Not Applicable,
Department for Business Energy and Industrial Strategy,Intellectual Property Office,06/07/2017,Office Supplies,Trade Mark Directorate,Thomson Reuters,802087782,360,Not Applicable,
Department for Business Energy and Industrial Strategy,Intellectual Property Office,12/07/2017,Legal & Hearings,Trade Mark Directorate,Government Legal Department,442828,201.78,Not Applicable,
Department for Business Energy and Industrial Strategy,Intellectual Property Office,18/07/2017,Legal & Hearings,Trade Mark Directorate,Government Legal Department,443060,517.47,Not Applicable,
Department for Business Energy and Industrial Strategy,Intellectual Property Office,03/07/2017,Marketing & Publicity,Trade Mark Directorate,CEVA UK Receivables Ltd,SI46302,732,Not Applicable,
Department for Business Energy and Industrial Strategy,Intellectual Property Office,18/07/2017,Legal & Hearings,Trade Mark Directorate,Government Legal Department,442915,10432.79,Not Applicable,
Department for Business Energy and Industrial Strategy,Intellectual Property Office,19/07/2017,Career Development Services,People Places & Serv Directorate,Subway,H57720170721noddcnypp,40.5,Not Applicable,
Department for Business Energy and Industrial Strategy,Intellectual Property Office,14/07/2017,Career Development Services,People Places & Serv Directorate,Paypal,H57720170718xkaoeytyr,1500,Not Applicable,
Department for Business Energy and Industrial Strategy,Intellectual Property Office,13/07/2017,Career Development Services,People Places & Serv Directorate,Amazon UK Marketplace,H57720170715dkjgeyuao,19.98,Not Applicable,
Department for Business Energy and Industrial Strategy,Intellectual Property Office,17/07/2017,Career Development Services,Projects,Subway,H57720170719fvkkefueg,36,Not Applicable,
Department for Business Energy and Industrial Strategy,Intellectual Property Office,03/07/2017,Career Development Services,Projects,Subway,H57720170705wkjyyntke,54,Not Applicable,
Department for Business Energy and Industrial Strategy,Intellectual Property Office,13/07/2017,Career Development Services,Copyright and Enforcement Directorate,E-Visa Turkey,H57720170715pfrnvjrfe,16.56,Not Applicable,
Department for Business Energy and Industrial Strategy,Intellectual Property Office,03/07/2017,Career Development Services,Copyright and Enforcement Directorate,Uscustoms Esta Appl Pmt,H57720170705tsmuovsjy,11.15,Not Applicable,
Department for Business Energy and Industrial Strategy,Intellectual Property Office,20/07/2017,Career Development Services,Patent Directorate,Www.Rwas.Wales,H57720170722npktencdn,26,Not Applicable,
Department for Business Energy and Industrial Strategy,Intellectual Property Office,24/07/2017,Career Development Services,People Places & Serv Directorate,Subway,H57720170726zzjqrjrzj,54,Not Applicable,
Department for Business Energy and Industrial Strategy,Intellectual Property Office,18/07/2017,T&S O-seas excl EPOQUE,International Policy Directorate,Dnata,H57720170720jpttrjccn,129,Not Applicable,
Department for Business Energy and Industrial Strategy,Intellectual Property Office,06/07/2017,Minor Works-Goods,People Places & Serv Directorate,Howdens - Newport D920,H57720170708ukvdzuont,1299.06,Not Applicable,
Department for Business Energy and Industrial Strategy,Intellectual Property Office,27/07/2017,Minor Works-Goods,People Places & Serv Directorate,Tg Howell,H57720170729xcslvicpu,23.62,Not Applicable,
Department for Business Energy and Industrial Strategy,Intellectual Property Office,04/07/2017,Minor Works-Goods,People Places & Serv Directorate,Screwfix Direct,H57720170706jodqrdbap,72.36,Not Applicable,
Department for Business Energy and Industrial Strategy,Intellectual Property Office,14/07/2017,Fixed Telecoms Equipment,IT Directorate,Amazon UK Marketplace,H57720170718fgjlotbjk,93.1,Not Applicable,
Department for Business Energy and Industrial Strategy,Intellectual Property Office,10/07/2017,Fixed Telecoms Equipment,IT Directorate,Www.Viking-Direct.Co.U,H57720170712xneplhlwl,79.77,Not Applicable,
Department for Business Energy and Industrial Strategy,Intellectual Property Office,27/07/2017,Books,IT Directorate,Amazon UK Retail,H57720170729yuunjbwkq,52.64,Not Applicable,
Department for Business Energy and Industrial Strategy,Intellectual Property Office,14/07/2017,Books,IT Directorate,Amz*yagexun,H57720170718jtlduudmn,-5.92,Not Applicable,
Department for Business Energy and Industrial Strategy,Intellectual Property Office,17/07/2017,Books,Innovation Directorate,Twitonomy.Com,H57720170719wslfoyusk,14.99,Not Applicable,
Department for Business Energy and Industrial Strategy,Intellectual Property Office,03/07/2017,Books,Patent Directorate,Amz*world Of Books Ltd,H57720170705tsneyojff,-61.41,Not Applicable,
Department for Business Energy and Industrial Strategy,Intellectual Property Office,21/07/2017,Overseas Patent Specifications,Patent Directorate,Sage Publications,H57720170725hugvnqyht,38.16,Not Applicable,
Department for Business Energy and Industrial Strategy,Intellectual Property Office,21/07/2017,Overseas Patent Specifications,Patent Directorate,Wiley Article Rental,H57720170725yltgkhbii,8.59,Not Applicable,
Department for Business Energy and Industrial Strategy,Intellectual Property Office,20/07/2017,Overseas Patent Specifications,Patent Directorate,Rei,H57720170722baydvrzfy,34.35,Not Applicable,
Department for Business Energy and Industrial Strategy,Intellectual Property Office,18/07/2017,Overseas Patent Specifications,Patent Directorate,Www.Springer.Com,H57720170721dkudgtkcn,23.94,Not Applicable,
Department for Business Energy and Industrial Strategy,Intellectual Property Office,17/07/2017,Overseas Patent Specifications,Patent Directorate,Www.Oup.Com,H57720170719ylmbhhpog,31.2,Not Applicable,
Department for Business Energy and Industrial Strategy,Intellectual Property Office,14/07/2017,Overseas Patent Specifications,Patent Directorate,Wiley Article Pdf,H57720170718bvwgoqbzi,36.3,Not Applicable,
Department for Business Energy and Industrial Strategy,Intellectual Property Office,13/07/2017,Overseas Patent Specifications,Patent Directorate,Www.Springer.Com,H57720170718dlpfqtyhd,41.94,Not Applicable,
Department for Business Energy and Industrial Strategy,Intellectual Property Office,11/07/2017,Overseas Patent Specifications,Patent Directorate,Rei,H57720170713tojbdjhwb,40.4,Not Applicable,
Department for Business Energy and Industrial Strategy,Intellectual Property Office,03/07/2017,Overseas Patent Specifications,Patent Directorate,Www.Springer.Com,H57720170706glswqhhnr,23.94,Not Applicable,
Department for Business Energy and Industrial Strategy,Intellectual Property Office,04/07/2017,Overseas Patent Specifications,Patent Directorate,Cambridge University Pres,H57720170706xjntqyulg,30,Not Applicable,
Department for Business Energy and Industrial Strategy,Intellectual Property Office,25/07/2017,Overseas Patent Specifications,Patent Directorate,Acs Articles On Comman,H57720170728cxfgqcfzd,31.68,Not Applicable,
Department for Business Energy and Industrial Strategy,Intellectual Property Office,25/07/2017,Overseas Patent Specifications,Patent Directorate,Rei,H57720170727hdtdbnlpv,34.15,Not Applicable,
Department for Business Energy and Industrial Strategy,Intellectual Property Office,24/07/2017,Overseas Patent Specifications,Patent Directorate,Paypal,H57720170726shhbssmef,23.7,Not Applicable,
Department for Business Energy and Industrial Strategy,Intellectual Property Office,24/07/2017,Overseas Patent Specifications,Patent Directorate,Rei,H57720170726rethpuwlk,34.21,Not Applicable,
Department for Business Energy and Industrial Strategy,Intellectual Property Office,27/07/2017,Office Stationery,Finance Directorate,Xma Ltd,H57720170729gkyyqpocg,82.73,Not Applicable,
Department for Business Energy and Industrial Strategy,Intellectual Property Office,27/07/2017,Office Stationery,Finance Directorate,Xma Ltd,H57720170729ideqwsjib,55.15,Not Applicable,
Department for Business Energy and Industrial Strategy,Intellectual Property Office,27/07/2017,Office Stationery,Finance Directorate,Xma Ltd,H57720170729chmpaignd,286.85,Not Applicable,
Department for Business Energy and Industrial Strategy,Intellectual Property Office,14/07/2017,Office Stationery,Finance Directorate,Xma Ltd,H57720170718siapqrwjc,132.74,Not Applicable,
Department for Business Energy and Industrial Strategy,Intellectual Property Office,06/07/2017,Office Stationery,Finance Directorate,Amazon UK Retail,H57720170708lvqvxqijq,18,Not Applicable,
Department for Business Energy and Industrial Strategy,Intellectual Property Office,06/07/2017,Office Stationery,Finance Directorate,Xma Ltd,H57720170708nknsfmzdt,55.15,Not Applicable,
Department for Business Energy and Industrial Strategy,Intellectual Property Office,05/07/2017,Office Stationery,Finance Directorate,Xma Ltd,H57720170707tnkbksgjm,112.46,Not Applicable,
Department for Business Energy and Industrial Strategy,Intellectual Property Office,30/06/2017,Office Stationery,Finance Directorate,Xma Ltd,H57720170704wfivvtyif,127.62,Not Applicable,
Department for Business Energy and Industrial Strategy,Intellectual Property Office,27/07/2017,Office Stationery,People Places & Serv Directorate,Hsm (UK) Ltd,H57720170729ozckzhcmo,530.22,Not Applicable,
Department for Business Energy and Industrial Strategy,Intellectual Property Office,28/07/2017,Office Stationery,People Places & Serv Directorate,Www.Officemonster.,H57720170801iqwzytkqg,17.46,Not Applicable,
Department for Business Energy and Industrial Strategy,Intellectual Property Office,28/07/2017,Office Stationery,People Places & Serv Directorate,Nukey,H57720170801gklsfqxvq,158.28,Not Applicable,
Department for Business Energy and Industrial Strategy,Intellectual Property Office,26/07/2017,Office Stationery,People Places & Serv Directorate,Amazon.Co.Uk,H57720170728vyzycuvck,11.5,Not Applicable,
Department for Business Energy and Industrial Strategy,Intellectual Property Office,26/07/2017,Office Stationery,People Places & Serv Directorate,Nukey,H57720170728elyjiybwq,164.76,Not Applicable,
Department for Business Energy and Industrial Strategy,Intellectual Property Office,26/07/2017,Office Stationery,People Places & Serv Directorate,Business Ind Solutions,H57720170728cmlxmglts,99.22,Not Applicable,
Department for Business Energy and Industrial Strategy,Intellectual Property Office,20/07/2017,Office Stationery,People Places & Serv Directorate,Www.Officemonster.,H57720170722cbhihbeoj,6.07,Not Applicable,
Department for Business Energy and Industrial Strategy,Intellectual Property Office,07/07/2017,Office Stationery,People Places & Serv Directorate,Amazon UK Marketplace,H57720170711quufodzgg,9.9,Not Applicable,
Department for Business Energy and Industrial Strategy,Intellectual Property Office,22/07/2017,Office Stationery,People Places & Serv Directorate,Amazon.Co.Uk,H57720170725uhecmsjxv,25.94,Not Applicable,
Department for Business Energy and Industrial Strategy,Intellectual Property Office,18/07/2017,Office Stationery,People Places & Serv Directorate,D Brash Snook0029,H57720170720lgxohlinm,264,Not Applicable,
Department for Business Energy and Industrial Strategy,Intellectual Property Office,18/07/2017,Office Stationery,People Places & Serv Directorate,Screwfix Direct,H57720170720lticgkisw,29.99,Not Applicable,
Department for Business Energy and Industrial Strategy,Intellectual Property Office,17/07/2017,Office Stationery,People Places & Serv Directorate,Healthy Workstations Ltd,H57720170719voolixdvo,94.8,Not Applicable,
Department for Business Energy and Industrial Strategy,Intellectual Property Office,11/07/2017,Office Stationery,People Places & Serv Directorate,South Wales Suppliers,H57720170713aqqwioxqj,124.8,Not Applicable,
Department for Business Energy and Industrial Strategy,Intellectual Property Office,11/07/2017,Office Stationery,People Places & Serv Directorate,South Wales Suppliers,H57720170713xvxsjqynm,31.2,Not Applicable,
Department for Business Energy and Industrial Strategy,Intellectual Property Office,27/07/2017,Office Stationery,People Places & Serv Directorate,Securedatarecyclin,H57720170729kaqfojibt,558,Not Applicable,
Department for Business Energy and Industrial Strategy,Intellectual Property Office,23/07/2017,Office Stationery,People Places & Serv Directorate,Amazon UK Retail,H57720170725jkbdnqqmq,103.94,Not Applicable,
Department for Business Energy and Industrial Strategy,Intellectual Property Office,14/07/2017,Office Stationery,People Places & Serv Directorate,Paypal,H57720170718rjvepvhuh,368.4,Not Applicable,
Department for Business Energy and Industrial Strategy,Intellectual Property Office,14/07/2017,Office Stationery,People Places & Serv Directorate,Healthy Workstations Ltd,H57720170718jaydopcrs,107.94,Not Applicable,
Department for Business Energy and Industrial Strategy,Intellectual Property Office,13/07/2017,Office Stationery,People Places & Serv Directorate,Amazon UK Marketplace,H57720170715bpxdmxbde,89.3,Not Applicable,
Department for Business Energy and Industrial Strategy,Intellectual Property Office,12/07/2017,Office Stationery,People Places & Serv Directorate,Amazon UK Marketplace,H57720170714yuajmrdmu,24.66,Not Applicable,
Department for Business Energy and Industrial Strategy,Intellectual Property Office,12/07/2017,Office Stationery,People Places & Serv Directorate,Amazon UK Retail,H57720170714dzjkodgzl,29.98,Not Applicable,
Department for Business Energy and Industrial Strategy,Intellectual Property Office,11/07/2017,Office Stationery,People Places & Serv Directorate,Www.Garden4less.Co.Uk,H57720170713udwrmgsvs,59.49,Not Applicable,
Department for Business Energy and Industrial Strategy,Intellectual Property Office,30/06/2017,Office Stationery,Finance Directorate,Www.Ukpos.Com,H57720170704pcnsrufqe,63.23,Not Applicable,
Department for Business Energy and Industrial Strategy,Intellectual Property Office,25/07/2017,CIMS Printing,Patent Directorate,The Intellectual Property,H57720170727olonjbqov,-20,Not Applicable,
Department for Business Energy and Industrial Strategy,Intellectual Property Office,25/07/2017,CIMS Printing,Patent Directorate,The Intellectual Property,H57720170727kuusjvsts,-20,Not Applicable,
Department for Business Energy and Industrial Strategy,Intellectual Property Office,25/07/2017,CIMS Printing,Patent Directorate,The Intellectual Property,H57720170727lztdusjhn,-30,Not Applicable,
Department for Business Energy and Industrial Strategy,Intellectual Property Office,25/07/2017,CIMS Printing,Patent Directorate,The Intellectual Property,H57720170727ipqstdbpb,-100,Not Applicable,
Department for Business Energy and Industrial Strategy,Intellectual Property Office,22/07/2017,CIMS Printing,Patent Directorate,The Intellectual Property,H57720170725zuhsikojg,20,Not Applicable,
Department for Business Energy and Industrial Strategy,Intellectual Property Office,22/07/2017,CIMS Printing,Patent Directorate,The Intellectual Property,H57720170725nxdrjlkht,100,Not Applicable,
Department for Business Energy and Industrial Strategy,Intellectual Property Office,22/07/2017,CIMS Printing,Patent Directorate,The Intellectual Property,H57720170725dslxjddsf,30,Not Applicable,
Department for Business Energy and Industrial Strategy,Intellectual Property Office,22/07/2017,CIMS Printing,Patent Directorate,The Intellectual Property,H57720170725vlitxplqf,20,Not Applicable,
Department for Business Energy and Industrial Strategy,Intellectual Property Office,25/07/2017,Software Maintenance,Projects,Www Postcodeanywhere Co U,H57720170728gydgjuqke,60,Not Applicable,
Department for Business Energy and Industrial Strategy,Intellectual Property Office,16/07/2017,Software Maintenance,Projects,Cloudflare,H57720170719zkpmlfjhg,7.9,Not Applicable,
Department for Business Energy and Industrial Strategy,Intellectual Property Office,12/07/2017,Software Maintenance,IT Directorate,Www.Aha.Io 1-888-926-2240,H57720170715tjifjfmdf,396.57,Not Applicable,
Department for Business Energy and Industrial Strategy,Intellectual Property Office,07/07/2017,Software Maintenance,Projects,Usersnapcom,H57720170711gtipprcny,119.24,Not Applicable,
Department for Business Energy and Industrial Strategy,Intellectual Property Office,18/07/2017,Software Maintenance,IT Directorate,Www.Cablemonkey.Co.Uk,H57720170720ehnzcutgj,74.3,Not Applicable,
Department for Business Energy and Industrial Strategy,Intellectual Property Office,15/07/2017,Software Maintenance,IT Directorate,Amazon UK Marketplace,H57720170718utdmdpwzw,29.15,Not Applicable,
Department for Business Energy and Industrial Strategy,Intellectual Property Office,06/07/2017,Software Maintenance,IT Directorate,Amazon UK Marketplace,H57720170708mhsssbxfq,19.08,Not Applicable,
Department for Business Energy and Industrial Strategy,Intellectual Property Office,27/07/2017,Network and infrastructure H/W,IT Directorate,Amazon UK Marketplace,H57720170729rqqgjcwvt,44.95,Not Applicable,
Department for Business Energy and Industrial Strategy,Intellectual Property Office,27/07/2017,Network and infrastructure H/W,IT Directorate,Amazon UK Marketplace,H57720170729wyijgukzv,75.96,Not Applicable,
Department for Business Energy and Industrial Strategy,Intellectual Property Office,13/07/2017,Network and infrastructure H/W,IT Directorate,Amazon UK Marketplace,H57720170715kqijfgxtv,24.25,Not Applicable,
Department for Business Energy and Industrial Strategy,Intellectual Property Office,12/07/2017,Network and infrastructure H/W,IT Directorate,Amazon UK Marketplace,H57720170714miailjbvn,45.37,Not Applicable,
Department for Business Energy and Industrial Strategy,Intellectual Property Office,05/07/2017,Network and infrastructure H/W,IT Directorate,Amazon UK Marketplace,H57720170707annihdwzr,564.94,Not Applicable,
Department for Business Energy and Industrial Strategy,Intellectual Property Office,04/07/2017,Network and infrastructure H/W,IT Directorate,Amazon UK Retail,H57720170706sidefjces,31.48,Not Applicable,
Department for Business Energy and Industrial Strategy,Intellectual Property Office,20/07/2017,Network and infrastructure H/W,IT Directorate,Www.Cablemonkey.Co.Uk,H57720170722ckionwifk,153,Not Applicable,
Department for Business Energy and Industrial Strategy,Intellectual Property Office,18/07/2017,Network and infrastructure H/W,IT Directorate,Www.Cablemonkey.Co.Uk,H57720170720wzpolxbuq,112.8,Not Applicable,
Department for Business Energy and Industrial Strategy,Intellectual Property Office,14/07/2017,Network and infrastructure H/W,IT Directorate,Wp-Tvcables Nimbus,H57720170718xczflcjtk,36.12,Not Applicable,
Department for Business Energy and Industrial Strategy,Intellectual Property Office,06/07/2017,Network and infrastructure H/W,People Places & Serv Directorate,Amazon UK Marketplace,H57720170708rvyojigdx,30.98,Not Applicable,
Department for Business Energy and Industrial Strategy,Intellectual Property Office,06/07/2017,Network and infrastructure H/W,People Places & Serv Directorate,Amazon UK Marketplace,H57720170708mhvmfbpqn,224.74,Not Applicable,
Department for Business Energy and Industrial Strategy,Intellectual Property Office,05/07/2017,Network and infrastructure H/W,People Places & Serv Directorate,Amazon UK Retail Amazon.C,H57720170708bmbcfztxu,9.98,Not Applicable,
Department for Business Energy and Industrial Strategy,Intellectual Property Office,05/07/2017,Network and infrastructure H/W,People Places & Serv Directorate,Alpha Electronics(Wales),H57720170707slbvnjvuf,44.4,Not Applicable,
Department for Business Energy and Industrial Strategy,Intellectual Property Office,05/07/2017,Network and infrastructure H/W,People Places & Serv Directorate,Amazon UK Retail,H57720170707fncgylqen,20.74,Not Applicable,
Department for Business Energy and Industrial Strategy,Intellectual Property Office,05/07/2017,Perpetual Licences,IT Directorate,Dri Captcha Inc,H57720170708xonfldrwd,42.02,Not Applicable,
Department for Business Energy and Industrial Strategy,Intellectual Property Office,06/07/2017,Perpetual Licences,IT Directorate,Websitepulse.Com,H57720170711pellmcyno,76.02,Not Applicable,
Department for Business Energy and Industrial Strategy,Intellectual Property Office,06/07/2017,Perpetual Licences,IT Directorate,Www.Monitis.Com,H57720170708vjtayedij,7.31,Not Applicable,
Department for Business Energy and Industrial Strategy,Intellectual Property Office,04/07/2017,Perpetual Licences,IT Directorate,Www.Monitis.Com,H57720170706lweegfshd,433.6,Not Applicable,
Department for Business Energy and Industrial Strategy,Intellectual Property Office,30/06/2017,Perpetual Licences,IT Directorate,Www.Monitis.Com,H57720170704rjgmgqkyh,72.04,Not Applicable,
Department for Business Energy and Industrial Strategy,Intellectual Property Office,17/07/2017,Perpetual Licences,IT Directorate,Meetingzone Ltd,H57720170719gdfkcojmw,736.34,Not Applicable,
Department for Business Energy and Industrial Strategy,Intellectual Property Office,12/07/2017,Advertising Distribution,Innovation Directorate,Act*innov8 Conference,H57720170714dsytvzees,360,Not Applicable,
Department for Business Energy and Industrial Strategy,Intellectual Property Office,11/07/2017,Advertising Distribution,Innovation Directorate,Act*innov8 Conference,H57720170713wrpqujoep,438,Not Applicable,
Department for Business Energy and Industrial Strategy,Intellectual Property Office,27/07/2017,Advertising Distribution,Innovation Directorate,Amazon UK Marketplace,H57720170729ejmcbimvg,12.24,Not Applicable,
Department for Business Energy and Industrial Strategy,Intellectual Property Office,19/07/2017,Advertising Distribution,Innovation Directorate,Campaignmonitor.Co,H57720170720kmydgiljl,79.2,Not Applicable,
Department for Business Energy and Industrial Strategy,Intellectual Property Office,24/07/2017,Entertainment,International Policy Directorate,Rock Insurance,H57720170726rnpvsblis,30.43,Not Applicable,
Department for Business Energy and Industrial Strategy,Intellectual Property Office,03/07/2017,Entertainment,Trade Mark Directorate,Claytons Cards Ltd,H57720170705gwguvxgig,33,Not Applicable,
Department for Business Energy and Industrial Strategy,Intellectual Property Office,03/07/2017,Entertainment,Trade Mark Directorate,Tesco-Stores 6459,H57720170705vlvrqdvhv,208.44,Not Applicable,
Department for Business Energy and Industrial Strategy,Intellectual Property Office,12/07/2017,Entertainment,People Places & Serv Directorate,Wayfair Stores Lim,H57720170726qkfwxwton,-29.99,Not Applicable,
Department for Business Energy and Industrial Strategy,Intellectual Property Office,17/07/2017,Entertainment,People Places & Serv Directorate,Homebase Ltd 110,H57720170719cxubilftd,17.06,Not Applicable,
Department for Business Energy and Industrial Strategy,Intellectual Property Office,12/07/2017,Entertainment,People Places & Serv Directorate,Wayfair Stores Lim,H57720170714vwkfyqiuj,34.98,Not Applicable,
Department for Business Energy and Industrial Strategy,Intellectual Property Office,10/07/2017,Entertainment,People Places & Serv Directorate,Asda Superstore 4928,H57720170712ciretsuxc,26.19,Not Applicable,
Department for Business Energy and Industrial Strategy,Intellectual Property Office,25/07/2017,Steering Board,People Places & Serv Directorate,Marks&spencer Plc,H57720170727cjhabugrm,57.54,Not Applicable,
Department for Business Energy and Industrial Strategy,Intellectual Property Office,24/07/2017,Steering Board,People Places & Serv Directorate,Sainsburys S/mkts,H57720170726mdpvulnws,7.2,Not Applicable,
Department for Business Energy and Industrial Strategy,Intellectual Property Office,05/07/2017,Steering Board,People Places & Serv Directorate,W M Morrison Plc,H57720170707lucpgeiry,7,Not Applicable,
Department for Business Energy and Industrial Strategy,Intellectual Property Office,05/07/2017,Steering Board,People Places & Serv Directorate,Marks&spencer Plc,H57720170707swofmmjbq,45.2,Not Applicable,
Department for Business Energy and Industrial Strategy,Intellectual Property Office,18/07/2017,Seminars and Confereces,IT Directorate,Dominos- Malpas Ro,H57720170720kpduljver,104.23,Not Applicable,
Department for Business Energy and Industrial Strategy,Intellectual Property Office,20/07/2017,Seminars and Confereces,IT Directorate,Asda Superstore 4928,H57720170722suwhjmigb,7.04,Not Applicable,
Department for Business Energy and Industrial Strategy,Intellectual Property Office,19/07/2017,Seminars and Confereces,IT Directorate,Asda,H57720170721ysmsonlbp,36.23,Not Applicable,
Department for Business Energy and Industrial Strategy,Intellectual Property Office,16/07/2017,Seminars and Confereces,People Places & Serv Directorate,Przcharge.Prezi.Com,H57720170718ffshbxhzq,15.6,Not Applicable,
Department for Business Energy and Industrial Strategy,Intellectual Property Office,05/07/2017,Seminars and Confereces,People Places & Serv Directorate,Tesco-Stores 6459,H57720170707hdqqqncip,14.32,Not Applicable,
Department for Business Energy and Industrial Strategy,Intellectual Property Office,18/07/2017,Eyecare,People Places & Serv Directorate,Specsaversevougb-,H57720170720qnncqqjxl,680,Not Applicable,
Department for Business Energy and Industrial Strategy,Intellectual Property Office,25/07/2017,Other,People Places & Serv Directorate,Paypal,H57720170727msfvwturv,24.93,Not Applicable,
Department for Business Energy and Industrial Strategy,Intellectual Property Office,26/07/2017,Other,People Places & Serv Directorate,Sp Pride Cymru,H57720170728fmksuueoq,346.5,Not Applicable,
Department for Business Energy and Industrial Strategy,Intellectual Property Office,16/07/2017,Other,People Places & Serv Directorate,Amazon UK Retail,H57720170718fgtesiuub,52.14,Not Applicable,
Department for Business Energy and Industrial Strategy,Intellectual Property Office,01/07/2017,Other,People Places & Serv Directorate,Coveritlive Scribbl Cov,H57720170704buqsnjgxk,38.97,Not Applicable,
Department for Business Energy and Industrial Strategy,Intellectual Property Office,04/07/2017,Other,People Places & Serv Directorate,Ring O Roses,H57720170706dgkndykkn,180,Not Applicable,
